Cogmind - Beta 17 @@@ ROGUE MODE // 2026.06.25 @ 03:58:42 Player: cptwinky Result: Destroyed by S-43 Plague with Heavy Machine Gun Performance ------------- Evolutions (9) 4500 Regions Visited (30) 6000 Robots Destroyed (460) 2300 Value Destroyed (22132) 22132 Prototype IDs (39) 780 Alien Tech Used (0) 0 Bonus (48795) 48795 TOTAL SCORE: 84507 Bonus ------- High Alert Combat Kills 3138 Follower Combat Kills 10036 Prayed to X0-1V1 5000 Major X0-1V1 Interference 13450 Entered Garrisons 1800 Used RIF Installer 4500 Network Hubs Disabled 400 Built Enhanced Grunts 300 Met R17 at Cetus 500 Met R17 at Research 2000 Destroyed MAIN.C Guards 500 Met MAIN.C 5000 Destroyed MAIN.C Shell 5000 Friendly Fire -2829 Cogmind --------- Core Integrity 0/1800 Matter 800/800 Energy 656/900 System Corruption 71% Temperature Cool (45) Movement Core (50) Location -1/Command Parts ------- > --- POWER (3) -------- (None) > --- PROPULSION (6) --- (None) > --- UTILITY (14) ----- (None) > --- WEAPON (3) ------- (None) > --- INVENTORY (6) ---- Improved Quantum Reactor HERF Cannon Peak State ------------ > --- POWER ------------ Particle Reactor Particle Reactor Improved Quantum Reactor > --- PROPULSION ------- Centrium Heavy Treads Advanced Heavy Siege Treads Advanced Heavy Siege Treads > --- UTILITY ---------- Experimental Cooling System Huge Storage Unit Advanced Weapon Cycler Centrium Medium Armor Plating Graphene Brace Advanced Focal Shield Thermal Shield Advanced Force Field Improved Hacking Suite Relay Coupler [NC] Relay Coupler [Hunter] Relay Coupler [Behemoth] X0-1V1's Piety Tracker > --- WEAPON ----------- Enhanced Nova Cannon YOLO Cannon > --- INVENTORY -------- Protomatter Improved Quantum Reactor Armored Heavy Treads Armored Heavy Treads Improved Matter Compressor Experimental Optical Array Experimental Sensor Array High-powered Tractor Beam HERF Cannon KE Penetrator Hypervelocity Mass Driver Hypervelocity Mass Driver Gamma Bomb Array Rocket Array Improved Remote Datajack Improved Remote Datajack Advanced Remote Datajack Improved Plasma Cutter Makeshift Hammer [Rating: 206] Favorites ----------- Power Particle Reactor Engine Heavy Ion Engine Power Core Neutrino Core Reactor Particle Reactor Propulsion Light Treads Treads Light Treads Leg Enhanced Biometal Leg Wheel Armored Huge Wheel Flight Unit VTOL Module Utility X0-1V1's Piety Tracker Device X0-1V1's Piety Tracker Storage Huge Storage Unit Processor Core Analyzer Hackware Relay Coupler [Sentry] Protection Powered Armor Weapon Gauss Rifle Energy Gun Small Laser Energy Cannon Advanced Beam Cannon Ballistic Gun Gauss Rifle Ballistic Cannon Hypervelocity Mass Driver Launcher Rocket Launcher Special Weapon Remote Datajack Impact Weapon Makeshift Hammer Special Melee Weapon Datajack Build | -11 -10 -10 -9 -9 -8 -8 -8 -8 -7 -7 -7 -7 -6 -6 -6 -6 -6 -6 -6 -5 -5 -4 -3 -3 -2 -2 -2 -2 -1 -1 ------- Run | Yrd Mat Min Mat Sto Mat Gar Mat Gar Fac Gar Fac Gar Fac Gar Fac Ext Cet Arc Hub Fac Gar Fac Res Gar Res Gar Res Gar Acc Com Slots Evolved 18 | . . . 2 . 2 . . . 2 . . . 2 . . . . . . 2 . 2 2 . 2 . . . 2 . Power 1 | . . . . . . . . . . . . . . . . . . . . . . . 1 . . . . . . . Propulsion 3 | . . . . . . . . . . . . . 2 . . . . . . . . 1 . . . . . . . . Utility 12 | . . . 2 . . . . . 2 . . . . . . . . . . 2 . 1 1 . 2 . . . 2 . Weapon 2 | . . . . . 2 . . . . . . . . . . . . . . . . . . . . . . . . . Parts Attached 294 | 6 9 7 25 45 10 7 10 23 8 9 11 8 11 10 7 4 9 5 2 8 8 2 2 9 1 1 2 10 10 15 Power 35 | 1 1 . 3 7 1 1 . 1 1 1 1 1 2 1 2 1 2 . . 1 . . . 2 . . . 4 . 1 Engine 22 | 1 1 . 3 7 1 1 . . 1 1 1 1 1 1 2 . . . . . . . . . . . . . . . Core 5 | . . . . . . . . 1 . . . . 1 . . 1 . . . 1 . . . 1 . . . . . . Reactor 8 | . . . . . . . . . . . . . . . . . 2 . . . . . . 1 . . . 4 . 1 Propulsion 72 | 2 1 3 3 18 1 3 6 4 1 2 1 1 3 3 . . 3 1 . . 2 1 1 . . . 1 . 2 9 Treads 54 | 2 1 3 3 13 1 3 3 4 1 1 1 1 . 3 . . 3 1 . . 2 1 1 . . . 1 . 2 3 Leg 5 | . . . . . . . . . . . . . . . . . . . . . . . . . . . . . . 5 Wheel 9 | . . . . 2 . . 3 . . 1 . . 3 . . . . . . . . . . . . . . . . . Hover . | . . . . . . . . . . . . . . . . . . . . . . . . . . . . . . . Flight 4 | . . . . 3 . . . . . . . . . . . . . . . . . . . . . . . . . 1 Utility 103 | 1 4 . 8 13 2 2 1 9 6 5 2 4 4 6 1 . 2 3 2 3 3 . 1 4 . 1 1 6 7 2 Device 41 | . 1 . 5 4 . 2 . 3 3 . 1 2 2 4 . . 1 3 1 1 2 . . 1 . . . 1 2 2 Storage 8 | 1 2 . . 2 . . . . . 1 . . . . . . . . . 1 . . 1 . . . . . . . Processor 5 | . . . . . . . . . 2 1 . . . . 1 . . . . . . . . . . . . 1 . . Hackware 27 | . . . . 1 . . . 3 . 2 1 2 . 2 . . . . 1 1 1 . . 3 . 1 . 4 5 . Protection 22 | . 1 . 3 6 2 . 1 3 1 1 . . 2 . . . 1 . . . . . . . . . 1 . . . Artifact . | . . . . . . . . . . . . . . . . . . . . . . . . . . . . . . . Weapon 84 | 2 3 4 11 7 6 1 3 9 . 1 7 2 2 . 4 3 2 1 . 4 3 1 . 3 1 . . . 1 3 Energy Gun 16 | . 2 4 5 1 . . 1 2 . . . . . . . . . . . 1 . . . . . . . . . . Energy Cannon 10 | . . . . 3 1 . . 1 . . 1 1 . . . . . . . . 1 . . . . . . . 1 1 Ballistic Gun 40 | 2 . . 2 1 5 1 2 5 . . 4 1 1 . 4 3 2 1 . 2 2 . . . 1 . . . . 1 Ballistic Cannon 3 | . . . . . . . . . . . . . . . . . . . . . . . . 3 . . . . . . Launcher 6 | . . . 2 2 . . . . . . 2 . . . . . . . . . . . . . . . . . . . Special Weapon 5 | . . . . . . . . 1 . 1 . . . . . . . . . 1 . 1 . . . . . . . 1 Impact Weapon 2 | . 1 . 1 . . . . . . . . . . . . . . . . . . . . . . . . . . . Slashing Weapon . | . . . . . . . . . . . . . . . . . . . . . . . . . . . . . . . Piercing Weapon . | . . . . . . . . . . . . . . . . . . . . . . . . . . . . . . . Special Melee Weapon 2 | . . . 1 . . . . . . . . . 1 . . . . . . . . . . . . . . . . . Unidentified Prototypes 15 | . 1 . 1 5 . . . . . . 1 . 2 1 . . 3 . . 1 . . . . . . . . . . Corrupted Parts 2 | . . . . . . . . . . . . . . . . . . 1 . . . . . . . . . . . 1 System Corruption 2 | . . . . . . . . . . . . . . . . . . 1 . . . . . . . . . . . 1 Parts Lost 60 | . . 1 2 12 2 6 . 4 . . 2 1 . . 1 . . . 2 . . . . 1 . . . . 1 25 Power 4 | . . . 1 1 . . . . . . . . . . 1 . . . . . . . . . . . . . . 1 Propulsion 17 | . . 1 . 4 2 2 . . . . . . . . . . . . . . . . . . . . . . . 8 Utility 29 | . . . 1 6 . 2 . 2 . . 1 1 . . . . . . . . . . . 1 . . . . 1 14 Weapon 10 | . . . . 1 . 2 . 2 . . 1 . . . . . . . 2 . . . . . . . . . . 2 Highest Loss Streak 12 | . . 1 1 5 1 2 . 1 . . 2 1 . . 1 . . . 2 . . . . 1 . . . . 1 12 To Critical Strikes 2 | . . . . 1 . . . . . . . . . . . . . . . . . . . . . . . . . 1 Average Backups 22 | 3 12 13 14 15 24 24 25 25 25 25 25 23 25 24 23 24 24 23 23 23 24 24 24 24 23 23 25 25 22 15 Power . | . 1 1 . . 2 1 1 1 1 . . . . . . . . . . . . . . 1 2 2 2 1 1 . Propulsion 1 | 1 4 2 1 2 3 1 1 2 2 2 1 . . 1 2 2 2 1 2 2 1 1 1 1 1 1 . . 1 1 Utility 11 | . 1 3 5 4 7 10 13 15 17 16 16 15 17 15 15 16 16 16 15 13 12 13 12 11 10 10 12 13 10 4 Weapon 6 | 1 4 5 5 7 9 10 8 4 3 4 5 5 5 5 4 4 4 4 4 4 6 7 8 7 7 7 7 7 6 5 Tool/Special . | . . . . . . . . . . . . . . . . . . . . . . . . . . . . . . . Unused Backups 72 | . 4 4 7 7 1 2 4 2 . 3 . 3 2 7 1 . . 1 . 1 3 . . 5 . . 1 6 4 4 Power 4 | . . 1 . 1 . . . . . . . . . . . . . . . . . . . . . . 1 1 . . Propulsion 22 | . 2 1 . 3 . . 2 . . . . 3 . 1 . . . . . . . . . 3 . . . 3 4 . Utility 20 | . . 1 2 . . 2 1 2 . 3 . . 2 . 1 . . 1 . 1 . . . 1 . . . 2 . 1 Weapon 24 | . 2 1 5 3 1 . 1 . . . . . . 6 . . . . . . 3 . . . . . . . . 2 Tool/Special 2 | . . . . . . . . . . . . . . . . . . . . . . . . 1 . . . . . 1 Average Slot Usage (%) 92 | . 96 100 99 93 90 96 95 88 99 94 96 98 93 99 85 87 86 86 87 85 87 88 88 89 90 91 87 86 87 72 Engine 6 | . 14 13 10 9 7 7 8 7 7 10 14 14 11 6 9 10 1 . . . . . . . . . . . . . Core 1 | . . . . . . . . . . . . . . 6 1 1 3 . . . 5 5 4 4 4 4 4 1 . . Reactor 2 | . . . . . . . . . . . . . . . . . 7 12 12 10 5 5 6 9 8 8 8 10 11 9 Treads 19 | . 28 29 30 27 28 32 24 12 28 14 14 20 17 12 12 12 12 12 12 11 14 18 17 18 16 16 12 12 10 9 Wheel 1 | . . . . . . . 3 8 . 4 3 . 1 11 . . . . . . . . . . . . . . . . Device 12 | . 1 13 20 18 10 12 16 10 13 9 8 13 8 7 6 6 5 5 6 10 12 15 17 16 19 16 16 19 20 17 Storage 6 | . 14 13 10 10 7 7 8 7 7 7 7 7 6 6 6 6 6 6 6 9 5 5 4 4 4 4 4 4 3 2 Processor 5 | . . . . . . . . . 7 11 13 7 6 6 11 12 12 12 12 11 11 10 9 9 8 8 8 8 7 2 Hackware 8 | . . . . 7 3 . . 3 7 7 8 7 6 8 12 12 12 12 12 11 9 10 9 9 12 16 16 16 20 14 Protection 5 | . 9 . 9 7 4 7 8 7 7 6 4 6 9 7 . . . . . . 5 5 4 4 4 4 4 . . 3 Energy Gun 2 | . 11 27 12 2 . . 6 . . . . . . . . . . . . 3 . . . . . . . . . . Ballistic Gun 13 | . 13 . 5 2 23 19 17 25 20 19 19 18 21 21 24 22 24 24 22 15 16 15 12 4 . . . . . . Ballistic Cannon 1 | . . . . . . . . . . . . . . . . . . . . . . . . 7 11 8 11 11 7 3 Peak Build Rating 206 | 6 20 25 33 35 44 46 55 58 56 67 72 72 77 93 95 99 114 116 116 128 133 142 159 163 170 167 172 184 200 206 Average Rating 85 | 5 8 21 29 31 40 42 44 50 51 56 67 68 72 70 93 95 107 109 114 124 128 140 153 158 169 164 168 179 194 170 On Entrance 91 | . 6 20 24 31 35 42 41 53 43 51 64 69 63 72 92 95 99 113 116 100 124 131 137 159 157 169 167 167 184 197 Avg Prop Armor Cover (%) 9 | . . . . 11 . . . 9 . 6 8 . 9 8 . . . . . . . . . . . . . . . 42 Naked Turns 1 | . . . . . . . . . . . . . . . . . . . . . . . . . . . . . . 1 Heaviest Build 206 | 12 31 30 39 104 118 122 107 121 110 124 128 131 132 129 124 120 149 144 144 149 148 146 167 171 172 171 174 181 201 206 Greatest Support 240 | 40 40 60 60 60 80 80 80 80 80 80 75 75 68 150 150 150 155 150 150 150 185 208 220 220 220 220 220 220 240 240 Greatest Overweight (x) 14 | . . . . 14 1 1 3 4 1 6 4 3 6 4 . . . . . . . . . . . . . . . 1 Average Overweight (x) . | . . . . . 1 1 1 1 1 3 2 1 1 3 . . . . . . . . . . . . . . . . Largest Inventory Capacity 26 | 8 15 16 16 26 26 26 26 26 26 26 26 26 26 26 26 26 26 26 26 26 26 26 26 26 26 26 26 26 26 26 Average Capacity 23 | 6 14 15 16 17 26 26 26 26 26 26 26 26 26 26 26 26 26 26 26 26 26 26 26 26 26 26 26 26 26 19 Most Carried 26 | 6 15 16 16 26 26 26 26 26 26 26 26 26 26 26 26 26 26 26 26 26 26 26 26 26 25 24 26 26 26 26 Average Carried 23 | 3 12 15 15 16 25 25 25 25 25 25 25 23 25 25 25 26 25 25 25 25 25 25 25 25 24 24 25 25 23 18 Final Capacity 26 | 8 15 16 16 26 26 26 26 26 26 26 26 26 26 26 26 26 26 26 26 26 26 26 26 26 26 26 26 26 26 6 Final Carried 26 | 6 15 15 16 26 25 26 26 26 26 26 23 25 26 26 26 26 26 26 26 26 26 26 26 26 24 24 26 26 24 2 Class Distribution -------------------- 29% | Botlord-Tank 11% | Bothacker-Tank 11% | Scavenger-Mutant 9% | Bothacker-Gunner 6% | Mutant 6% | Botlord-Gunner 5% | Hauler-Mutant 4% | Hauler-Tank 4% | Commander-Tank 3% | Bothacker-Mutant Dominant Class ---------------- Mutant | -10/Materials Scavenger-Mutant | -10/Mines Scavenger-Mutant | -9/Materials Scavenger-Mutant | -9/Storage Hauler-Tank | -8/Materials Hauler-Mutant | -8/Garrison Bothacker-Tank | -8/Materials Bothacker-Tank | -8/Garrison Bothacker-Tank | -7/Factory Botlord-Gunner | -7/Garrison Bothacker-Gunner | -7/Factory Bothacker-Gunner | -7/Garrison Botlord-Gunner | -6/Factory Botlord-Gunner | -6/Garrison Botlord-Tank | -6/Factory Botlord-Tank | -6/Extension Commander-Tank | -6/Cetus Commander-Tank | -6/Archives Botlord-Tank | -6/Hub_04(d) Botlord-Skirmisher | -5/Factory Bothacker-Tank | -5/Garrison Botlord-Tank | -4/Factory Botlord-Tank | -3/Research Botlord-Tank | -3/Garrison Botlord-Tank | -2/Research Botlord-Mutant | -2/Garrison Botlord-Tank | -2/Research Botlord-Tank | -2/Garrison Botlord-Tank | -1/Access Botlord-Tank | -1/Command Resources | -11 -10 -10 -9 -9 -8 -8 -8 -8 -7 -7 -7 -7 -6 -6 -6 -6 -6 -6 -6 -5 -5 -4 -3 -3 -2 -2 -2 -2 -1 -1 ----------- Run | Yrd Mat Min Mat Sto Mat Gar Mat Gar Fac Gar Fac Gar Fac Gar Fac Ext Cet Arc Hub Fac Gar Fac Res Gar Res Gar Res Gar Acc Com Matter Collected 24495 | 264 375 395 680 2675 654 1441 701 986 222 1107 1035 971 508 1385 648 269 1215 445 605 470 2095 89 . 923 90 24 260 1374 1933 656 Remotely 1405 | . . . . . . . . . . . . . . 443 . . . . . . 110 . . . . . . 571 164 117 Salvage Created 20777 | 48 696 224 866 1760 678 1239 486 624 . 1051 958 771 683 1465 114 450 407 349 894 403 1930 178 83 595 182 65 90 1283 1423 782 Parts 1020 | 5 42 11 52 108 54 75 35 38 . 36 49 30 46 57 7 21 13 25 34 28 84 10 2 23 10 2 4 51 48 20 Haulers Intercepted 20 | . 2 . 2 5 2 . . . . . 7 . . . . . . . . . . . . . . . 1 . 1 . Recyclers Shooed 13 | . 1 . 3 2 1 . . . 1 . 1 . 1 . . 2 . . . . . . . . . . . . 1 . Parts Field Recycled . | . . . . . . . . . . . . . . . . . . . . . . . . . . . . . . . Retrieved Matter . | . . . . . . . . . . . . . . . . . . . . . . . . . . . . . . . Parts Self-Destructed . | . . . . . . . . . . . . . . . . . . . . . . . . . . . . . . . Prevented . | . . . . . . . . . . . . . . . . . . . . . . . . . . . . . . . Parts Restored . | . . . . . . . . . . . . . . . . . . . . . . . . . . . . . . . Kills | -11 -10 -10 -9 -9 -8 -8 -8 -8 -7 -7 -7 -7 -6 -6 -6 -6 -6 -6 -6 -5 -5 -4 -3 -3 -2 -2 -2 -2 -1 -1 ------- Run | Yrd Mat Min Mat Sto Mat Gar Mat Gar Fac Gar Fac Gar Fac Gar Fac Ext Cet Arc Hub Fac Gar Fac Res Gar Res Gar Res Gar Acc Com Combat Hostiles Destroyed 370 | . 19 7 23 34 23 37 12 22 . 20 10 15 16 19 2 7 6 . 12 8 27 2 1 9 1 1 . 18 12 7 Melee 6 | . 2 . . . 2 . . . . . . . . . . . . . . . 1 . . . . 1 . . . . Guns 216 | . 12 7 12 7 9 27 12 15 . 17 8 13 4 14 2 7 6 . 12 3 24 2 1 2 . . . . . . Cannons 62 | . . . . 13 . 1 . 1 . . . 1 1 1 . . . . . 1 1 . . 7 1 . . 18 11 5 AOE 76 | . . . 10 14 12 9 . 6 . 2 2 1 11 4 . . . . . 4 . . . . . . . . . 1 Classes Destroyed 21 | 1 5 . 4 3 3 1 . 1 . . . 1 1 . . . . . . . . . . . . . . 1 . . Worker 12 | . . . 1 6 . . 1 . . . . . . . . . . . . 1 . . . . . . 1 . 2 . Builder 11 | . . . 1 4 . . . . . . 1 . 3 . . . . . . 1 . 1 . . . . . . . . Tunneler 5 | 2 . . 1 . . . . . . . . . . . . 1 . . . . . . . . . . . . 1 . Hauler 20 | . 2 . 2 5 2 . . . . . 7 . . . . . . . . . . . . . . . 1 . 1 . Recycler 13 | . 1 . 1 2 . . 2 . . . 2 . 1 . . . . . 1 . . . . . 1 . . . 2 . Mechanic 1 | . . . . . . . . . . . . . 1 . . . . . . . . . . . . . . . . . Operator 14 | . 1 . 1 . 1 . . . . . 1 . 1 . . . . 9 . . . . . . . . . . . . Watcher 9 | . . . 1 . 1 1 . . . 1 . 1 1 . . . . . 1 . 1 . . . . . . . 1 . Swarmer 81 | . 9 3 7 . 9 9 7 9 . 2 2 1 3 10 . . . . . . 4 . . 1 . . . 2 1 2 Cutter 4 | . . . . . . 3 . . . . . . 1 . . . . . . . . . . . . . . . . . Grunt 158 | . 10 4 12 14 7 19 . 3 . 15 7 6 8 8 . 5 2 . 7 3 9 . 1 3 . 1 . 5 8 1 Brawler 8 | . . . . 2 . . . . . . . 1 . . . . . . 2 . 1 . . . . . . 2 . . Duelist 10 | . . . . . 1 . . 2 . 1 . 3 . 1 . . . . 1 1 . . . . . . . . . . Protector 3 | . . . . 1 1 . . . . . . . 1 . . . . . . . . . . . . . . . . . Sentry 40 | . . . 4 9 2 5 2 . . . . 1 . . . . . . 1 1 5 2 . 3 . . . 2 2 1 Specialist 7 | . . . . . 2 1 3 . . . . . . . 1 . . . . . . . . . . . . . . . Hunter 27 | . . . . 9 . . . 2 . 1 1 1 1 . 1 . . . . 1 4 . . 2 . . . 4 . . Programmer 24 | . . . . . . . . 6 . 1 1 1 2 . . 1 . . 1 2 2 . . . 1 . . 2 2 2 Heavy 1 | . . . . . 1 . . . . . . . . . . . . . . . . . . . . . . . . . Behemoth 4 | . . . . . . . . . . . . 1 . . . 1 . . . . 2 . . . . . . . . . Cetus Guard 4 | . . . . . . . . . . . . . . . . . 4 . . . . . . . . . . . . . Executioner 1 | . . . . . . . . . . . . . . . . . . . . . . . . . . . . 1 . . Thug 1 | . . . . . . . . . . . . . . . . . . 1 . . . . . . . . . . . . Best Kill Streak 12 | 2 4 3 12 10 8 9 5 9 . 4 8 3 11 8 2 3 2 4 4 5 4 1 1 2 1 1 1 7 4 2 Combat Bots Only 9 | . 4 3 8 8 8 9 4 9 . 4 2 3 9 8 2 3 2 . 4 4 4 1 1 2 1 1 . 7 3 2 Max Kills in Single Turn 6 | 1 2 1 4 4 4 3 2 3 . 2 2 1 6 4 1 1 1 2 2 4 2 1 1 1 1 1 1 1 2 1 Gunslinging 1 | . 1 . . . . 1 1 . . 1 . . . 1 . . . . . . 1 . . . . . . . . . Exploded 5 | . . . 3 3 3 3 . 3 . 1 2 1 5 4 . . . . . 3 . . . . . . . . . 1 Melee 1 | . 1 . . . 1 . . . . . . . . . . . . . . . 1 . . . . 1 . . . . Uniques/NPCs Destroyed 2 | . . . . . . . . . . . . . . . . . 1 . . . . . . . . . . . . 1 A7 (-6/Cetus) MAIN.C Shell (-1/Command) Combat | -11 -10 -10 -9 -9 -8 -8 -8 -8 -7 -7 -7 -7 -6 -6 -6 -6 -6 -6 -6 -5 -5 -4 -3 -3 -2 -2 -2 -2 -1 -1 -------- Run | Yrd Mat Min Mat Sto Mat Gar Mat Gar Fac Gar Fac Gar Fac Gar Fac Ext Cet Arc Hub Fac Gar Fac Res Gar Res Gar Res Gar Acc Com Hostile Shots Fired 3004 | . 80 40 94 212 72 107 65 126 14 79 42 56 68 88 9 82 43 . 76 25 236 12 6 58 . 14 7 210 125 958 Missed 866 | . 24 6 23 56 17 28 23 42 6 28 12 19 22 27 3 23 9 . 19 5 59 3 1 16 . 2 1 68 41 283 Hits 2138 | . 56 34 71 156 55 79 42 84 8 51 30 37 46 61 6 59 34 . 57 20 177 9 5 42 . 12 6 142 84 675 Melee 31 | . . . . . 2 3 . 4 . . . 5 1 . . . . . 1 . . . . . . . . 1 . 14 Projectile 2107 | . 56 34 71 156 53 76 42 80 8 51 30 32 45 61 6 59 34 . 56 20 177 9 5 42 . 12 6 141 84 661 AOE 15 | . . . . . . 3 . . . . . 4 1 . . . . . 1 . . 1 . . . . . . . 5 Critical Strikes 84 | . 1 . . 2 5 4 . 2 . 4 . 3 . 2 . . 1 . 5 1 3 . . 1 . . . 1 4 45 Actively Blocked 13 | . . . . . . . . . . . . . . . . . . . . . . . . . . . . . . 13 Part Disruptions 8 | . . . . . . . . . . . . . . . . . . . . . . . . . . . . . . 8 Damage Taken 23127 | . 549 366 916 2442 972 1079 449 1182 90 271 620 536 667 441 244 310 259 . 1359 302 784 180 . 309 . . 101 334 276 8089 Core 3496 | . 55 66 125 257 39 80 137 112 5 22 119 50 87 64 51 44 12 . 58 46 23 18 . 8 . . . 29 . 1989 Absorbed by Shields 2406 | . . 44 . 42 . 103 . 112 . . . 28 . . . 95 33 . . 37 241 67 . 117 . . 38 128 249 1072 Reduced by Siege Mode 88 | . . . . . . . . . . . . . . . . . . . . . 15 . . . . . . . . 73 Redirected to Shielding 126 | . . . . . . . . . . . . . 45 81 . . . . . . . . . . . . . . . . Ignored by Resistances 22654 | . . . 2 . . 65 26 140 . 496 172 184 437 383 15 439 594 . 450 292 2755 252 97 641 . 297 209 3680 1699 9329 Regen/Repaired (Parts) 928 | . . . . . 11 . . . . . . 45 21 125 . 10 . . . 366 . . . . . . 350 . . . Core Remaining (%) 86 | 100 . 84 . 52 . . . 89 . . . 78 . . . . . . 69 . 94 98 . 99 . . . 98 . . Volleys Fired 1290 | 4 49 22 74 101 40 56 17 65 1 89 54 62 30 54 6 40 28 16 44 12 100 9 4 54 6 . 12 60 118 63 Largest 4 | 2 2 2 2 2 4 4 3 3 1 3 3 3 4 4 4 4 4 4 4 4 4 3 3 3 3 . 3 3 3 3 Hottest 270 | 40 80 80 96 103 95 151 103 83 23 76 81 84 164 112 114 120 130 130 135 181 151 105 168 168 168 . 168 168 232 270 Shots Fired 2821 | 8 98 44 136 139 106 152 53 119 2 202 132 123 64 178 21 97 109 64 104 39 246 23 10 104 10 . 26 130 161 121 Gun 2054 | 8 98 44 128 74 97 141 53 92 2 193 117 108 47 167 20 80 108 64 80 34 212 21 6 36 4 . . . . 20 Cannon 484 | . . . . 49 3 3 . 5 . . 8 3 7 . . . . . . 3 17 . 4 44 6 . 21 117 100 94 Launcher 63 | . . . 8 16 6 8 . 10 . 5 1 1 6 1 . 1 . . . . . . . . . . . . . . Special 220 | . . . . . . . . 12 . 4 6 11 4 10 1 16 1 . 24 2 17 2 . 24 . . 5 13 61 7 Kinetic 2087 | 8 67 . 17 39 97 141 40 92 2 193 117 108 47 167 20 80 108 64 80 29 212 21 6 79 10 . 21 117 55 50 Thermal 438 | . 31 44 111 84 3 3 13 5 . . 8 . 5 . . . . . . 5 12 . 4 1 . . . . 45 64 Explosive 63 | . . . 8 16 6 8 . 10 . 5 1 1 6 1 . 1 . . . . . . . . . . . . . . Electromagnetic 13 | . . . . . . . . . . . . 3 2 . . . . . . 3 5 . . . . . . . . . Robot Hit Streak 99 | 4 11 10 20 21 19 13 6 9 10 99 13 9 11 38 39 11 20 12 9 9 19 5 13 20 11 . 11 11 15 17 Robot Miss Streak 8 | 1 4 2 7 2 8 3 4 5 . 4 5 4 3 4 2 2 5 4 2 2 3 1 . 3 1 . 3 2 3 3 Penetration Max 1 | . . . . . . . . . . . 1 1 . 1 . 1 1 1 1 . 1 . . 1 . . . 1 1 . Secondary Targets 45 | . 2 3 . 1 . 8 2 2 . 4 1 2 1 6 . 2 3 . 2 1 4 . . 1 . . . . . . Max Gunslinging Chain 1 | . 1 1 . 1 . 1 1 1 . 1 1 1 1 1 . 1 1 . 1 1 1 . . 1 . . . . . . Shots Hit Robots 1915 | 6 76 32 94 104 76 115 31 88 1 166 88 76 38 127 16 72 75 36 69 26 147 9 8 73 5 3 17 78 83 80 Core Hits 987 | 3 29 13 47 76 48 70 23 47 . 71 60 39 74 73 5 24 30 25 26 15 65 5 3 24 4 . 5 25 26 32 Critical Kills 56 | . 1 . . . . 1 . . . . . 1 . 3 . . 1 3 3 . . . . 7 1 . 1 17 14 3 Critical Parts Destroyed 88 | . 6 . . . . . . 2 . 2 . 1 . 3 1 1 4 2 4 . 1 . 1 9 . 2 3 24 16 6 Critical Strikes 165 | . 7 . 6 . . 1 . 2 . 2 . 2 . 6 1 1 5 5 7 . 2 . 1 20 1 2 6 46 30 12 Burn 6 | . . . 6 . . . . . . . . . . . . . . . . . . . . . . . . . . . Meltdown 2 | . . . . . . . . . . . . . . . . . . . . . . . . . . . . . 1 1 Destroy 148 | . . . . . . 1 . 2 . 2 . 2 . 6 1 1 5 5 7 . 2 . 1 20 1 . 6 46 29 11 Smash 9 | . 7 . . . . . . . . . . . . . . . . . . . . . . . . 2 . . . . Melee Attacks 240 | . 24 . 1 7 10 80 1 26 . 21 7 9 1 10 . 2 8 . 5 . 4 . . 9 . 6 . 9 . . Impact 209 | . 24 . 1 7 10 70 1 13 . 16 7 9 1 9 . . 8 . 5 . 4 . . 9 . 6 . 9 . . Slashing . | . . . . . . . . . . . . . . . . . . . . . . . . . . . . . . . Piercing . | . . . . . . . . . . . . . . . . . . . . . . . . . . . . . . . Sneak Attacks 29 | . . . . . . 10 . 10 . 4 2 . . 1 . 2 . . . . . . . . . . . . . . Combat Hostiles . | . . . . . . . . . . . . . . . . . . . . . . . . . . . . . . . Follow-up Attacks . | . . . . . . . . . . . . . . . . . . . . . . . . . . . . . . . Damage Inflicted 46852 | 47 939 356 2394 4310 2268 2662 579 2223 49 2228 1792 1726 2908 3159 284 1351 1871 1043 1582 1329 3848 353 216 1176 104 134 226 1285 1273 3137 Guns 27384 | 47 543 356 1320 879 1082 1828 579 1031 14 1779 1471 1452 588 2761 284 1329 1854 1043 1563 590 3540 338 120 681 50 . . . . 262 Cannons 7066 | . . . . 871 . 55 . 88 . . . 42 81 184 . . . . . 35 224 . 96 476 54 . 225 1266 1143 2226 Explosions 10428 | . . . 1029 2455 859 768 . 811 . 408 137 200 2226 214 . . . . . 704 . . . . . . . . . 617 Melee 1332 | . 381 . . . 299 . . 293 . 41 184 . . . . . . . . . . . . . . 134 . . . . Ramming 642 | . 15 . 45 105 28 11 . . 35 . . 32 13 . . 22 17 . 19 . 84 15 . 19 . . 1 19 130 32 Kinetic 28178 | 47 396 . 184 461 1082 1828 461 1031 14 1779 1471 1452 588 2761 284 1329 1854 1043 1563 469 3540 338 120 1157 104 . 225 1266 720 611 Thermal 7246 | . 147 356 1136 1289 . 55 118 88 . . . . 237 184 . . . . . 583 40 . 96 . . . . . 423 2494 Explosive 9137 | . . . 1029 2455 859 768 . 811 . 408 137 200 2014 214 . . . . . 242 . . . . . . . . . . Electromagnetic 317 | . . . . . . . . . . . . 42 56 . . . . . . 35 184 . . . . . . . . . Impact 1332 | . 381 . . . 299 . . 293 . 41 184 . . . . . . . . . . . . . . 134 . . . . Slashing . | . . . . . . . . . . . . . . . . . . . . . . . . . . . . . . . Piercing . | . . . . . . . . . . . . . . . . . . . . . . . . . . . . . . . Highest Corruption 68 | . 1 1 2 6 . 16 16 22 1 . 7 8 1 1 1 2 12 12 15 18 18 . . 1 . . . 1 11 68 Average Corruption 7 | . 1 1 1 4 . 15 16 20 1 . 7 7 1 1 1 1 12 8 4 16 9 . . 1 . . . 1 2 27 Corruption Purged 13 | . . . 1 . . . . . . . . . 1 . . . . 11 . . . . . . . . . . . . Corruption Blocked . | . . . . . . . . . . . . . . . . . . . . . . . . . . . . . . . Effects 421 | . 4 2 7 39 . 73 19 83 3 . 1 32 3 11 3 7 3 8 1 4 62 . . 4 . . . 5 17 30 Message Errors 97 | . 1 . 3 11 . 17 1 19 1 . 1 3 1 1 1 2 2 1 1 2 15 . . 1 . . . 1 5 7 Matter Fused 95 | . . 2 2 6 . 21 6 17 1 . . 9 1 2 1 2 . 1 . 1 10 . . 1 . . . 1 5 6 Heat Flow Errors 60 | . 1 . . 10 . 10 2 10 . . . 6 . 3 . 2 1 . . . 11 . . 1 . . . 1 . 2 Energy Discharges 52 | . 1 . . 4 . 7 2 8 . . . 7 1 1 1 1 . 2 . 1 11 . . . . . . 2 1 2 Parts Rejected 5 | . . . 1 . . . 1 2 . . . . . . . . . . . . . . . . . . . . 1 . Parts Fused 5 | . . . . . . . . 2 . . . 1 . 1 . . . 1 . . . . . . . . . . . . Data Loss (minor) 41 | . 1 . . 3 . 11 4 4 . . . 3 . 2 . . . 1 . . 7 . . 1 . . . . 3 1 Data Loss (major) 18 | . . . . 1 . 4 1 6 . . . 2 . . . . . 1 . . . . . . . . . . 1 2 Misfires 13 | . . . 1 . . 3 2 3 1 . . 1 . 1 . . . . . . 1 . . . . . . . . . Alerts 9 | . . . . 2 . . . 5 . . . . . . . . . . . . 1 . . . . . . . 1 . Misdirections 10 | . . . . . . . . 3 . . . . . . . . . . . . . . . . . . . . . 7 Weapon Failures 16 | . . . . 2 . . . 4 . . . . . . . . . 1 . . 6 . . . . . . . . 3 Overload Shots . | . . . . . . . . . . . . . . . . . . . . . . . . . . . . . . . Overflow Damage 791 | . 146 . 52 20 38 8 . 123 . 19 98 . 58 . . . . . . 69 18 . . . . 77 1 44 20 . Projectiles 94 | . . . . 14 . . . 26 . . . . 7 . . . . . . . . . . . . . 1 44 2 . Explosions 223 | . . . 52 4 38 8 . 1 . . . . 51 . . . . . . 69 . . . . . . . . . . Melee 474 | . 146 . . 2 . . . 96 . 19 98 . . . . . . . . . 18 . . . . 77 . . 18 . Knockbacks 34 | . . . . . 2 . . 3 . . . . . . . . . . . . 1 . . 2 . 1 . 14 8 3 Impact 7 | . . . . . 2 . . 2 . . . . . . . . . . . . 1 . . . . 1 . . 1 . Kinetic 25 | . . . . . . . . . . . . . . . . . . . . . . . . 2 . . . 14 6 3 Secondary 2 | . . . . . . . . 1 . . . . . . . . . . . . . . . . . . . . 1 . Self-Inflicted Damage 846 | . . . 52 281 40 77 . 127 . . . . 177 . . 9 . . . 68 . . . . . . . . . 15 Shots 36 | . . . 3 11 2 4 . 3 . . . . 9 . . 1 . . . 2 . . . . . . . . . 1 Rammed 49 | . 1 1 8 10 2 2 . . 4 . . 1 1 . . 3 2 . 1 . 3 . . 1 . . . 1 6 2 Targets Rammed 69 | . 2 1 9 12 3 2 . . 4 . . 1 1 . . 3 2 . 1 . 4 1 . 1 . . 1 1 6 14 Kicked 12 | . . . . . . . . . . . . . . . . . . . . . . . . . . . . . . 12 Crushed 8 | . 1 . 1 2 1 . . . . . . . . . . . . . . . 1 1 . . . . 1 . . . Highest Temperature 399 | . 145 108 237 399 140 269 239 233 . 177 240 295 173 335 81 324 373 156 302 221 335 108 244 232 189 . 324 387 289 284 Average Temperature 79 | . 30 55 34 84 51 65 105 76 . 61 68 81 49 114 33 110 118 46 74 82 99 45 107 107 98 . 143 107 58 79 Received Heat Transfer 4166 | . 135 159 360 352 261 394 18 99 . 390 108 97 222 249 9 171 127 . 243 30 242 7 . 72 . . . 6 37 378 Effects 19 | . . . . 6 . . . . . . . 3 . . . . 2 . . . 1 . . 3 . . 1 . . 3 Shutdowns 1 | . . . . . . . . . . . . . . . . . 1 . . . . . . . . . . . . . Energy Bleed 3 | . . . . 1 . . . . . . . . . . . . . . . . 1 . . . . . 1 . . . Interference 12 | . . . . 2 . . . . . . . 3 . . . . 1 . . . . . . 3 . . . . . 3 Matter Decay 1 | . . . . 1 . . . . . . . . . . . . . . . . . . . . . . . . . . Short Circuit 1 | . . . . 1 . . . . . . . . . . . . . . . . . . . . . . . . . . Damage (minor) 1 | . . . . 1 . . . . . . . . . . . . . . . . . . . . . . . . . . Siege Activations 3 | . . . . . . . . . . . . . . . . . . . . . 2 . . . . . . . . 1 Total Turns 95 | . . . . . . . . . . . . . . . . . . . . . 53 . . . . . . . . 42 Longest Duration 50 | . . . . . . . . . . . . . . . . . . . . . 50 . . . . . . . . 42 Martial Activations . | . . . . . . . . . . . . . . . . . . . . . . . . . . . . . . . Shielding Activations . | . . . . . . . . . . . . . . . . . . . . . . . . . . . . . . . Robots Disrupted . | . . . . . . . . . . . . . . . . . . . . . . . . . . . . . . . Combat Hostiles . | . . . . . . . . . . . . . . . . . . . . . . . . . . . . . . . Robots Corrupted 13 | . 5 . . 1 . . . 1 . 1 1 . 1 . . . . . . . 2 . . . . . . . 1 . Combat Hostiles 6 | . 5 . . . . . . . . . . . . . . . . . . . 1 . . . . . . . . . Parts Fried 19 | . 6 . 1 . . . . 3 . 1 . . 1 . . . 1 . . . 5 . . . . . . . 1 . Impact Corruptions 22 | . 8 . . 2 . . . 4 . 1 2 . . . . . . . . . 2 . . . . 2 . . 1 . Robots Melted 3 | . . . 1 . . . . . . . . . . . . . . . . . . . . . . . . . 1 1 Combat Hostiles 3 | . . . 1 . . . . . . . . . . . . . . . . . . . . . . . . . 1 1 Parts Melted 29 | . . 2 10 4 . . . . . 1 . 2 . 1 . . . . . 1 2 . 1 . . . . . 1 4 Heat Transferred 9453 | . 325 771 3105 2331 . 74 259 111 . . . . 150 50 . . . . . 535 37 . 150 . . . . . 351 1204 Parts Sabotaged . | . . . . . . . . . . . . . . . . . . . . . . . . . . . . . . . Parts Stolen . | . . . . . . . . . . . . . . . . . . . . . . . . . . . . . . . Parts Stripped . | . . . . . . . . . . . . . . . . . . . . . . . . . . . . . . . Power Chain Reactions . | . . . . . . . . . . . . . . . . . . . . . . . . . . . . . . . Alert | -11 -10 -10 -9 -9 -8 -8 -8 -8 -7 -7 -7 -7 -6 -6 -6 -6 -6 -6 -6 -5 -5 -4 -3 -3 -2 -2 -2 -2 -1 -1 ------- Run | Yrd Mat Min Mat Sto Mat Gar Mat Gar Fac Gar Fac Gar Fac Gar Fac Ext Cet Arc Hub Fac Gar Fac Res Gar Res Gar Res Gar Acc Com Maximum Alert Level 5 | . 1 . 1 3 2 5 4 5 3 3 2 3 3 3 2 1 1 . 2 2 3 2 . 2 1 1 . 3 2 2 Low Security (%) 27 | 100 75 100 86 15 6 . . . . . 30 . . . . 92 20 100 27 65 . . 100 42 . . 100 20 30 22 Level 1 26 | . 24 . 13 21 51 9 . . 15 27 57 43 20 . 32 7 79 . 17 30 55 75 . 41 100 100 . 2 48 55 Level 2 21 | . . . . 56 41 9 . 1 39 38 12 19 40 22 67 . . . 54 4 13 25 . 15 . . . 62 21 22 Level 3 15 | . . . . 6 . 16 90 22 44 33 . 37 39 77 . . . . . . 31 . . . . . . 14 . . Level 4 6 | . . . . . . 34 9 66 . . . . . . . . . . . . . . . . . . . . . . Level 5 2 | . . . . . . 29 . 8 . . . . . . . . . . . . . . . . . . . . . . High Security . | . . . . . . . . . . . . . . . . . . . . . . . . . . . . . . . Max Security . | . . . . . . . . . . . . . . . . . . . . . . . . . . . . . . . Peak Influence 2195 | 5 280 97 293 776 568 2195 1119 1639 860 839 451 971 943 1074 563 265 355 175 557 411 843 442 188 528 300 249 177 864 557 483 Initial 1069 | . . 87 . 108 323 224 1069 669 860 249 440 292 509 642 563 140 145 110 20 9 276 442 152 35 291 205 139 49 518 339 Average 496 | 1 110 24 107 466 368 1267 1044 1274 606 561 268 541 602 881 434 65 265 123 338 146 507 364 125 248 278 220 112 530 293 361 Influence Increases 19707 | 10 566 170 734 1910 730 2031 425 1090 197 730 850 799 1027 532 41 511 350 282 916 561 707 88 55 634 63 44 417 1098 1437 702 Destroy 0b10 Robot/C 8455 | . 380 140 460 860 480 760 300 580 60 420 420 320 320 300 30 180 150 75 360 120 420 30 15 225 15 15 135 450 315 120 Destroy 0b10 Robot/NC 537 | 10 20 . 40 100 25 5 15 10 10 15 65 10 40 28 . 8 4 36 24 8 12 4 . . 4 . 12 . 32 . Destroy Leader 1336 | . 74 30 96 242 126 10 60 40 34 40 114 20 52 24 . 32 8 . 58 24 32 16 . 16 8 . 50 48 66 16 Allied During Kill 2150 | . . . . 64 10 2 5 71 44 8 126 22 28 22 1 193 161 111 308 . 3 12 2 145 27 15 154 239 289 88 Trap Triggered on 0b10 120 | . . . 20 40 . 10 . 40 . . 10 . . . . . . . . . . . . . . . . . . . Successful Hack 401 | . 12 . 20 18 24 16 . 7 18 . 24 14 34 . 9 42 . . . 4 17 . 36 23 6 . 15 28 18 16 Disable Machine 1032 | . . . 30 105 30 15 15 60 15 . 45 . 285 . . 12 12 48 84 108 12 12 . 12 . . 36 24 48 24 Anti-Garrison Action 2580 | . . . . . . 1100 . 250 . 150 . 250 150 113 . . . . . . 151 . . 151 . . . 265 . . Destroy Structure 1800 | . 5 . 38 93 35 113 . 32 1 52 16 73 118 45 1 20 15 12 58 112 12 14 2 26 3 14 15 44 609 222 Partial Spotted 12 | . . . . . . . . . . . . . . . . . . . . . . . . . . . . . . 12 Lose Combat Pursuer 711 | . 75 . 30 . . . 30 . 15 45 30 90 . . . 24 . . 24 . 48 . . 36 . . . . 60 204 Miscellaneous 573 | . . . . 388 . . . . . . . . . . . . . . . 185 . . . . . . . . . . Influence Decreases 19532 | 10 341 395 476 1402 1151 181 1590 481 1479 248 1271 246 1080 376 827 538 336 499 953 187 259 641 298 162 308 69 600 300 1770 1058 Entered New Map 7111 | . . 138 . 150 443 121 1126 361 779 108 399 126 462 276 511 148 116 165 38 12 119 401 138 12 228 69 110 17 346 192 Time Decay 6681 | 10 341 247 456 702 368 . 214 . 410 . 562 . 398 . 246 370 190 214 268 165 . 160 160 . 80 . 270 . 644 206 Search Patrol Dispatched 100 | . . . . 100 . . . . . . . . . . . . . . . . . . . . . . . . . . Lost Part 600 | . . 10 20 120 20 60 . 40 . . 20 10 . . 10 . . . 20 . . . . 10 . . . . 10 250 Lost Ally 3390 | . . . . 180 20 . 100 80 140 140 140 110 70 100 60 20 30 120 177 10 140 80 . 140 . . 220 283 770 260 Purge Threat 1650 | . . . . 150 300 . 150 . 150 . 150 . 150 . . . . . 450 . . . . . . . . . . 150 Squads Dispatched 94 | . 3 . 3 10 9 . . . 5 . 12 . 5 . 3 2 1 . 9 2 . 1 1 . 3 . 5 . 17 3 Investigation 19 | . 1 . 1 . 2 . . . 1 . 1 . . . 1 1 1 . 3 1 . . . . 2 . 1 . 3 . Extermination 15 | . . . . . . . . . 1 . 3 . 1 . . . . . 1 . . 1 . . . . 1 . 5 2 Reinforcement 35 | . 2 . 2 3 2 . . . 1 . 7 . 2 . 2 1 . . 3 . . . 1 . . . 1 . 7 1 Assault 13 | . . . . 4 1 . . . 1 . 1 . 2 . . . . . 2 1 . . . . . . . . 1 . Garrison 12 | . . . . 3 4 . . . 1 . . . . . . . . . . . . . . . 1 . 2 . 1 . Intercept . | . . . . . . . . . . . . . . . . . . . . . . . . . . . . . . . Searches Triggered 1 | . . . . 1 . . . . . . . . . . . . . . . . . . . . . . . . . . Construction Impeded 8 | . . . . 1 . . . . . . 2 . . . . 1 . . 1 . . . . . . . . . 3 . Haulers Reinforced 5 | . . . . . . . . . 1 . 4 . . . . . . . . . . . . . . . . . . . Active Scanning Responses . | . . . . . . . . . . . . . . . . . . . . . . . . . . . . . . . Cargo Convoy Interrupts . | . . . . . . . . . . . . . . . . . . . . . . . . . . . . . . . Alert ID Control Effect 186 | . . . . . . . . 4 3 6 2 11 1 6 8 2 . . 9 1 1 . . 13 1 1 11 2 81 23 Stealth | -11 -10 -10 -9 -9 -8 -8 -8 -8 -7 -7 -7 -7 -6 -6 -6 -6 -6 -6 -6 -5 -5 -4 -3 -3 -2 -2 -2 -2 -1 -1 --------- Run | Yrd Mat Min Mat Sto Mat Gar Mat Gar Fac Gar Fac Gar Fac Gar Fac Ext Cet Arc Hub Fac Gar Fac Res Gar Res Gar Res Gar Acc Com Distress Signals 53 | . 5 . 4 . 5 3 . . . 2 2 3 . . . 1 1 . 4 . 3 . . . . . 6 . 10 4 Communications Jammed 503 | . . . . . . . . . 6 . . 21 . . . . . . 7 . . 4 . . . . . . 269 196 Distress Signals 481 | . . . . . . . . . . . . 21 . . . . . . 7 . . . . . . . . . 263 190 Times Spotted 1016 | . 32 7 34 48 41 52 19 37 8 31 29 40 23 34 7 21 16 9 50 11 46 6 2 31 1 2 15 47 84 233 Peak Tracking Total 96 | . 6 3 4 7 5 7 5 4 2 5 4 8 8 7 3 3 5 1 10 4 12 4 1 7 1 2 4 8 7 96 Tactical Retreats 32 | . 3 . 2 . . . 2 . 1 3 2 4 . . . 2 . . 1 . 3 . . 1 . . . . 2 6 Traps | -11 -10 -10 -9 -9 -8 -8 -8 -8 -7 -7 -7 -7 -6 -6 -6 -6 -6 -6 -6 -5 -5 -4 -3 -3 -2 -2 -2 -2 -1 -1 ------- Run | Yrd Mat Min Mat Sto Mat Gar Mat Gar Fac Gar Fac Gar Fac Gar Fac Ext Cet Arc Hub Fac Gar Fac Res Gar Res Gar Res Gar Acc Com Traps Triggered 66 | . 3 1 3 3 . 15 . 11 1 8 . 3 1 7 1 . . . . . 1 1 . 1 . . . 5 1 . Indirectly . | . . . . . . . . . . . . . . . . . . . . . . . . . . . . . . . Trap Hack Attempts 185 | . . . 51 41 . . . . 92 . . . . . . 1 . . . . . . . . . . . . . . Triggered . | . . . . . . . . . . . . . . . . . . . . . . . . . . . . . . . Disarmed 1 | . . . . . . . . . 1 . . . . . . . . . . . . . . . . . . . . . Reprogrammed 18 | . . . 7 7 . . . . 4 . . . . . . . . . . . . . . . . . . . . . Reused 12 | . . . 2 4 . 1 . 4 . . 1 . . . . . . . . . . . . . . . . . . . Traps Extracted 16 | . . . 5 10 . . . 1 . . . . . . . . . . . . . . . . . . . . . . Installed 21 | . . 1 1 9 . 1 . 7 . . 1 . . . . . . . . . 1 . . . . . . . . . Triggered 12 | . . . 2 4 . 1 . 4 . . 1 . . . . . . . . . . . . . . . . . . . Most Traps Carried 7 | . . 3 5 7 7 7 6 6 6 6 6 5 5 7 5 5 5 5 5 5 5 4 4 4 4 4 4 4 . . Machines | -11 -10 -10 -9 -9 -8 -8 -8 -8 -7 -7 -7 -7 -6 -6 -6 -6 -6 -6 -6 -5 -5 -4 -3 -3 -2 -2 -2 -2 -1 -1 ---------- Run | Yrd Mat Min Mat Sto Mat Gar Mat Gar Fac Gar Fac Gar Fac Gar Fac Ext Cet Arc Hub Fac Gar Fac Res Gar Res Gar Res Gar Acc Com Machines Disabled 98 | . . . 2 7 2 5 1 6 1 . 3 1 20 3 . 1 1 4 7 9 4 1 . 4 . . 3 7 4 2 Max in Single Turn 16 | . . . 2 1 1 2 1 1 . . 1 1 16 1 . 1 1 1 2 6 1 1 . 1 . . . 1 1 1 Garrison Access 6 | . . . . 1 . . . . . . . . 1 . . . . . 1 . . . . . . . . . 3 . Garrison Relay 17 | . . . . . . 4 . 2 . . . 1 . 1 . . . . . . 2 . . 2 . . . 5 . . Phase Generator 3 | . . . . . . . . 1 . . . . . . . . . . . . 1 . . 1 . . . . . . Network Hub 2 | . . . . . . . . . . . . . . . . . . . 2 . . . . . . . . . . . Energy Cycler 1 | . . . . . . . . . . . . . . . . . . . . . . . . . . . . . 1 . Machines Repaired . | . . . . . . . . . . . . . . . . . . . . . . . . . . . . . . . Machines Dismantled . | . . . . . . . . . . . . . . . . . . . . . . . . . . . . . . . Machines Sabotaged . | . . . . . . . . . . . . . . . . . . . . . . . . . . . . . . . Overloaded Fab Kills . | . . . . . . . . . . . . . . . . . . . . . . . . . . . . . . . Hacking | -11 -10 -10 -9 -9 -8 -8 -8 -8 -7 -7 -7 -7 -6 -6 -6 -6 -6 -6 -6 -5 -5 -4 -3 -3 -2 -2 -2 -2 -1 -1 --------- Run | Yrd Mat Min Mat Sto Mat Gar Mat Gar Fac Gar Fac Gar Fac Gar Fac Ext Cet Arc Hub Fac Gar Fac Res Gar Res Gar Res Gar Acc Com Machines Accessed 109 | . 3 1 5 12 8 5 2 3 5 4 7 2 6 2 3 8 1 . 2 5 2 1 2 2 2 . 3 5 6 2 Terminals 76 | . 3 . 3 8 6 5 1 3 3 4 3 2 3 2 2 8 1 . 2 3 2 . 1 2 1 . . 5 1 2 Fabricators 3 | . . . . . . . . . 1 . . . . . . . . . . 1 . . . . . . . . 1 . Repair Stations 8 | . . . . 2 1 . . . . . 2 . 1 . . . . . . . . 1 . . . . 1 . . . Recycling Units 1 | . . . . 1 . . . . . . . . . . . . . . . . . . . . . . . . . . Scanalyzers 7 | . . . 2 . . . . . . . 1 . 1 . 1 . . . . . . . . . . . 1 . 1 . Garrison Access 13 | . . . . 1 1 . 1 . 1 . 1 . 1 . . . . . . 1 . . 1 . 1 . 1 . 3 . Total Hacks 258 | . 9 1 19 27 20 13 3 5 12 9 15 3 14 3 6 13 4 . 3 13 3 1 6 3 7 . 12 12 20 2 Successful 102 | . 2 1 10 15 10 1 2 1 3 . 5 1 7 1 3 8 . . 1 3 2 . 3 2 2 . 5 4 8 2 Failed 154 | . 7 . 9 12 9 12 1 4 9 9 10 2 7 2 3 5 4 . 2 10 1 1 3 1 5 . 6 8 12 . Catastrophic 41 | . 1 . 1 1 3 1 1 2 1 3 4 1 4 . 1 1 1 . 1 5 . . 1 . 1 . 2 . 5 . Database Lockouts 2 | . . . . . 1 . . . . . . . . . . . . . . . . . . . . . 1 . . . Manual 85 | . 8 . 11 10 14 . 1 . 8 . 5 . 5 . 1 2 1 . 1 8 . . 4 . 4 . 1 . . 1 Terminals 164 | . 9 . 11 15 15 13 2 5 7 9 5 3 8 3 3 13 4 . 3 6 3 . 3 3 2 . . 12 5 2 Fabricators 7 | . . . . . . . . . 3 . . . . . . . . . . 2 . . . . . . . . 2 . Repair Stations 19 | . . . . 5 2 . . . . . 6 . 1 . . . . . . . . 1 . . . . 4 . . . Recycling Units 6 | . . . . 6 . . . . . . . . . . . . . . . . . . . . . . . . . . Scanalyzers 29 | . . . 8 . . . . . . . 2 . 3 . 3 . . . . . . . . . . . 6 . 7 . Garrison Access 32 | . . . . 1 3 . 1 . 2 . 2 . 2 . . . . . . 5 . . 3 . 5 . 2 . 6 . Terminal Hacks 45 | . 2 1 3 6 6 1 1 1 1 . 1 1 2 1 1 7 . . . . 2 . 1 2 . . . 4 . 1 Robot Analysis 5 | . 2 . 1 . 2 . . . . . . . . . . . . . . . . . . . . . . . . . Prototype ID Bank 1 | . . . . . 1 . . . . . . . . . . . . . . . . . . . . . . . . . Open Door 14 | . . 1 . 3 . . . 1 . . . . . . . 6 . . . . 1 . . . . . . 1 . 1 Branch Access Points 2 | . . . 1 . . . . . . . . . 1 . . . . . . . . . . . . . . . . . Emergency Access Points 3 | . . . . . . . . . . . . . . 1 . . . . . . 1 . . . . . . 1 . . Scanalyzer Index 1 | . . . 1 . . . . . . . . . . . . . . . . . . . . . . . . . . . Unreport Threat 7 | . . . . 1 2 . 1 . 1 . 1 . 1 . . . . . . . . . . . . . . . . . Locate Traps 4 | . . . . 2 . . . . . . . . . . 1 1 . . . . . . . . . . . . . . Zone Layout 2 | . . . . . 1 . . . . . . . . . . . . . . . . . 1 . . . . . . . Garrison Registry 2 | . . . . . . . . . . . . 1 . . . . . . . . . . . . . . . 1 . . Patrol Navigation 3 | . . . . . . 1 . . . . . . . . . . . . . . . . . 1 . . . 1 . . Security Stations 1 | . . . . . . . . . . . . . . . . . . . . . . . . 1 . . . . . . Fabricator Hacks 2 | . . . . . . . . . . . . . . . . . . . . 1 . . . . . . . . 1 . Network Status 2 | . . . . . . . . . . . . . . . . . . . . 1 . . . . . . . . 1 . Repair Station Hacks 7 | . . . . 2 2 . . . . . 1 . . . . . . . . . . . . . . . 2 . . . Scan Component 5 | . . . . 2 1 . . . . . 1 . . . . . . . . . . . . . . . 1 . . . Repair 2 | . . . . . 1 . . . . . . . . . . . . . . . . . . . . . 1 . . . Recycling Unit Hacks 4 | . . . . 4 . . . . . . . . . . . . . . . . . . . . . . . . . . Recycle Component 1 | . . . . 1 . . . . . . . . . . . . . . . . . . . . . . . . . . Process 1 | . . . . 1 . . . . . . . . . . . . . . . . . . . . . . . . . . Retrieve Matter 1 | . . . . 1 . . . . . . . . . . . . . . . . . . . . . . . . . . Retrieve Components 1 | . . . . 1 . . . . . . . . . . . . . . . . . . . . . . . . . . Scanalyzer 15 | . . . 6 . . . . . . . 2 . 3 . 2 . . . . . . . . . . . 1 . 1 . Insert Component 2 | . . . 1 . . . . . . . . . 1 . . . . . . . . . . . . . . . . . Analyze 2 | . . . 1 . . . . . . . . . 1 . . . . . . . . . . . . . . . . . Retrieve Study 11 | . . . 4 . . . . . . . 2 . 1 . 2 . . . . . . . . . . . 1 . 1 . Garrison Access Hacks 16 | . . . . 1 1 . 1 . 1 . 1 . 1 . . . . . . 1 . . 1 . 1 . 1 . 6 . Unlock Access 9 | . . . . . 1 . 1 . 1 . 1 . 1 . . . . . . 1 . . 1 . 1 . 1 . . . Seal Access 4 | . . . . 1 . . . . . . . . . . . . . . . . . . . . . . . . 3 . Coupler Status 3 | . . . . . . . . . . . . . . . . . . . . . . . . . . . . . 3 . Unauthorized Hacks 13 | . . . 1 2 1 . . . 1 . . . 1 . . 1 . . 1 1 . . 1 . 1 . 1 . . 1 Terminals 8 | . . . 1 1 1 . . . . . . . 1 . . 1 . . 1 . . . 1 . . . . . . 1 Botnet 7 | . . . 1 1 1 . . . . . . . 1 . . 1 . . . . . . 1 . . . . . . 1 Sabotage 1 | . . . . . . . . . . . . . . . . . . . 1 . . . . . . . . . . . Fabricators 1 | . . . . . . . . . . . . . . . . . . . . 1 . . . . . . . . . . Haulers 1 | . . . . . . . . . . . . . . . . . . . . 1 . . . . . . . . . . Repair Stations . | . . . . . . . . . . . . . . . . . . . . . . . . . . . . . . . Recycling Units 1 | . . . . 1 . . . . . . . . . . . . . . . . . . . . . . . . . . Mask 1 | . . . . 1 . . . . . . . . . . . . . . . . . . . . . . . . . . Scanalyzers . | . . . . . . . . . . . . . . . . . . . . . . . . . . . . . . . Garrison Access 3 | . . . . . . . . . 1 . . . . . . . . . . . . . . . 1 . 1 . . . Reprogram 3 | . . . . . . . . . 1 . . . . . . . . . . . . . . . 1 . 1 . . . Data Cores Recovered 2 | . . . . . 1 . . . . . . . 1 . . . . . . . . . . . . . . . . . Used . | . . . . . . . . . . . . . . . . . . . . . . . . . . . . . . . Hacking Detections 83 | . 3 . 4 8 6 4 1 2 5 4 7 1 5 2 3 5 2 . 1 4 1 1 1 . 2 . 2 4 4 1 Full Trace Events 16 | . . . 1 1 2 4 . 1 . 1 1 . . . 1 1 1 . . . . . . . 1 . . . 1 . Feedback Events 2 | . . . . . . 1 . . . . . . . . 1 . . . . . . . . . . . . . . . Corruption 2 | . . . . . . 1 . . . . . . . . 1 . . . . . . . . . . . . . . . Feedback Blocked . | . . . . . . . . . . . . . . . . . . . . . . . . . . . . . . . Robot Schematics Acquired . | . . . . . . . . . . . . . . . . . . . . . . . . . . . . . . . Robots Built . | . . . . . . . . . . . . . . . . . . . . . . . . . . . . . . . Authchips . | . . . . . . . . . . . . . . . . . . . . . . . . . . . . . . . Time . | . . . . . . . . . . . . . . . . . . . . . . . . . . . . . . . Total Robot Build Rating . | . . . . . . . . . . . . . . . . . . . . . . . . . . . . . . . Part Schematics Acquired 2 | . . . 1 . . . . . . . . . 1 . . . . . . . . . . . . . . . . . Parts Built . | . . . . . . . . . . . . . . . . . . . . . . . . . . . . . . . Authchips . | . . . . . . . . . . . . . . . . . . . . . . . . . . . . . . . Time . | . . . . . . . . . . . . . . . . . . . . . . . . . . . . . . . Total Part Build Rating . | . . . . . . . . . . . . . . . . . . . . . . . . . . . . . . . Part Studies Acquired 11 | . . . 4 . . . . . . . 2 . 1 . 2 . . . . . . . . . . . 1 . 1 . Parts Repaired 2 | . . . . . 1 . . . . . . . . . . . . . . . . . . . . . 1 . . . Time 190 | . . . . . 136 . . . . . . . . . . . . . . . . . . . . . 54 . . . Parts Recycled 1 | . . . . 1 . . . . . . . . . . . . . . . . . . . . . . . . . . Recycled Matter 533 | . . . . 533 . . . . . . . . . . . . . . . . . . . . . . . . . . Retrieved Matter 533 | . . . . 533 . . . . . . . . . . . . . . . . . . . . . . . . . . Retrieved Components 9 | . . . . 9 . . . . . . . . . . . . . . . . . . . . . . . . . . Parts Scanalyzed 2 | . . . 1 . . . . . . . . . 1 . . . . . . . . . . . . . . . . . Part Schematics Acquired 2 | . . . 1 . . . . . . . . . 1 . . . . . . . . . . . . . . . . . Parts Damaged 1 | . . . 1 . . . . . . . . . . . . . . . . . . . . . . . . . . . Bothacking | -11 -10 -10 -9 -9 -8 -8 -8 -8 -7 -7 -7 -7 -6 -6 -6 -6 -6 -6 -6 -5 -5 -4 -3 -3 -2 -2 -2 -2 -1 -1 ------------ Run | Yrd Mat Min Mat Sto Mat Gar Mat Gar Fac Gar Fac Gar Fac Gar Fac Ext Cet Arc Hub Fac Gar Fac Res Gar Res Gar Res Gar Acc Com Used RIF Installer 9 | . . . . . . 1 . 1 . 1 . 1 . 1 . . . . . . 1 . . 1 . 1 . 1 . . Code Merge 1 | . . . . . . . . . . . . 1 . . . . . . . . . . . . . . . . . . Command Fork 2 | . . . . . . . . . . . . . . . . . . . . . . . . . . 1 . 1 . . Threat Obfuscator 1 | . . . . . . . . . . . . . . 1 . . . . . . . . . . . . . . . . Watcher Feeds 1 | . . . . . . . . . . 1 . . . . . . . . . . . . . . . . . . . . Patrol Navigation 1 | . . . . . . . . . . . . . . . . . . . . . . . . 1 . . . . . . Alert ID Control 1 | . . . . . . . . 1 . . . . . . . . . . . . . . . . . . . . . . Program Shield 1 | . . . . . . . . 1 . . . . . . . . . . . . . . . . . . . . . . Autoassimilate 1 | . . . . . . . . . . . . . . . . . . . . . 1 . . . . . . . . . Robots Hacked 140 | . . . . . . . . 4 . 3 4 7 3 8 . 10 1 . 12 2 9 1 . 5 . . 5 13 45 8 Non-combat 16 | . . . . . . . . . . . . 2 . 1 . 1 . . 4 1 . 1 . . . . . . 5 1 Combat 124 | . . . . . . . . 4 . 3 4 5 3 7 . 9 1 . 8 1 9 . . 5 . . 5 13 40 7 Autoassimilated 23 | . . . . . . . . . . . . . . . . . . . . . 1 . . 1 . . 2 3 11 5 Robot Hacks Applied 130 | . . . . . . . . 4 . 4 5 8 3 9 1 10 1 . 19 2 9 1 . 4 . . 3 10 34 3 parse_system 9 | . . . . . . . . . . 1 . 1 2 . 1 1 1 . 1 . . . . . . . . 1 . . find_chute 1 | . . . . . . . . . . . . . . . . . . . . . . 1 . . . . . . . . deconstruct_machine 2 | . . . . . . . . . . . . . . . . . . . 1 . . . . . . . . . 1 . ignore_repairs 2 | . . . . . . . . . . . . . . . . . . . 2 . . . . . . . . . . . map_walls 1 | . . . . . . . . . . . . . . . . 1 . . . . . . . . . . . . . . purge_threat 5 | . . . . . . . . . . . . . . . . . . . 4 . . . . . . . . . . 1 block_reporting 1 | . . . . . . . . . . . . . . . . . . . 1 . . . . . . . . . . . map_route 2 | . . . . . . . . . . . . . . . . . . . . . . . . . . . . . 2 . find_garrison 1 | . . . . . . . . . . . 1 . . . . . . . . . . . . . . . . . . . scatter_targeting 3 | . . . . . . . . . . . . . . . . . . . . . . . . . . . 1 . 2 . disrupt_area 1 | . . . . . . . . . . . . . . . . . . . . . . . . . . . . 1 . . amplify_resonance 3 | . . . . . . . . . . . . . . . . . . . . . 2 . . 1 . . . . . . wipe_record 1 | . . . . . . . . . . . . . . 1 . . . . . . . . . . . . . . . . reboot_system 2 | . . . . . . . . . . . . . . . . . . . . . . . . . . . . 1 1 . overwrite_iff 18 | . . . . . . . . 1 . . . . . 1 . 1 . . 6 . 5 . . . . . . . 4 . streamctrl_high 2 | . . . . . . . . . . . . . . . . . . . . 1 . . . . . . . 1 . . formatsys_low 5 | . . . . . . . . . . . . 1 . 1 . . . . 1 1 . . . . . . . . 1 . formatsys_high 70 | . . . . . . . . 3 . 3 4 6 1 6 . 7 . . 3 . 2 . . 3 . . 2 6 23 1 formatsys_deep 1 | . . . . . . . . . . . . . . . . . . . . . . . . . . . . . . 1 Relay Couplers Released 67 | . . . . . . 16 . 6 . . . 4 . 4 . . . . 2 . 7 . . 9 . . . 16 3 . Machine Destruction 67 | . . . . . . 16 . 6 . . . 4 . 4 . . . . 2 . 7 . . 9 . . . 16 3 . Attached 24 | . . . . . . . . 3 . 2 . 2 . 2 . . . . 1 1 1 . . 3 . 1 . 4 4 . Merged Code Value 32 | . . . . . . . . . . . . . . . . . . . . . . . . . . . . 26 6 . Fabnet Peak Effective % . | . . . . . . . . . . . . . . . . . . . . . . . . . . . . . . . Robots Rewired 58 | . . . . . . 6 . 10 . 3 . 2 . . . 10 . . . . 5 . . 14 . 3 . 5 . . Allies Hacked 5 | . . . . . . . . 2 . . 2 . . . . . . . . . . 1 . . . . . . . . Hacks Repelled . | . . . . . . . . . . . . . . . . . . . . . . . . . . . . . . . Allies | -11 -10 -10 -9 -9 -8 -8 -8 -8 -7 -7 -7 -7 -6 -6 -6 -6 -6 -6 -6 -5 -5 -4 -3 -3 -2 -2 -2 -2 -1 -1 -------- Run | Yrd Mat Min Mat Sto Mat Gar Mat Gar Fac Gar Fac Gar Fac Gar Fac Ext Cet Arc Hub Fac Gar Fac Res Gar Res Gar Res Gar Acc Com Total Allies 240 | . . . . 12 . 6 . 14 1 7 8 11 1 9 . 26 7 . 9 2 13 3 . 18 1 5 7 20 52 8 Largest Group 24 | . . . . 10 2 5 5 10 9 3 6 6 5 4 4 23 24 23 14 2 4 5 1 12 10 15 16 10 15 7 Highest-Rated Group 1798 | . . . . 88 62 78 78 233 228 68 180 197 229 148 148 829 1199 1040 711 61 181 215 48 727 616 908 938 456 1798 1228 Highest-Rated Ally 219 | . . . . 31 31 16 16 40 40 41 37 80 80 46 50 159 159 96 96 41 85 51 48 64 64 80 80 119 219 219 Total Orders 59 | . . . . . . . . 2 4 . 2 6 1 4 4 7 . . . 5 2 4 2 . . . . . 16 . STAY 25 | . . . . . . . . . 2 . 1 2 . 2 1 3 . . . 2 1 4 1 . . . . . 6 . ROAM 9 | . . . . . . . . 1 . . . . . . . . . . . . 1 . . . . . . . 7 . FOLLOW 16 | . . . . . . . . 1 2 . 1 1 . 1 2 3 . . . 2 . . 1 . . . . . 2 . AID 9 | . . . . . . . . . . . . 3 1 1 1 1 . . . 1 . . . . . . . . 1 . Ally Attacks 1561 | . . . . 61 6 2 29 40 45 27 81 51 6 23 27 77 47 31 135 6 39 11 . 97 6 6 126 146 330 106 Total Damage 53654 | . . . . 779 105 58 220 869 958 1024 1486 1904 395 763 852 1886 1450 730 3687 170 604 290 . 2696 103 144 3727 4342 14659 9753 Kills 324 | . . . . 11 3 1 3 12 8 7 15 13 3 7 8 9 7 6 28 1 2 . . 21 1 1 24 14 95 24 Allies Corrupted 7 | . . . . . . . . . . . . . . . . . . . 3 . . . . . . . . 1 2 1 Allies Melted 3 | . . . . . . . . . . . 1 . . . . . . . 1 . . . . 1 . . . . . . X0-1V1 Amusement Gains 345 | . 14 . 15 40 5 20 . 40 10 10 2 . . . . . . 10 70 . . . 20 . . . 10 30 5 44 Good Acts 198 | . 1 6 8 10 5 8 1 10 5 9 8 16 4 12 2 10 4 4 3 1 16 3 5 11 1 . 4 9 14 8 Bad Acts 98 | . . 3 9 11 7 11 2 1 . 2 1 2 . . . 2 4 4 1 5 13 . . 3 . 1 1 5 8 2 Intel | -11 -10 -10 -9 -9 -8 -8 -8 -8 -7 -7 -7 -7 -6 -6 -6 -6 -6 -6 -6 -5 -5 -4 -3 -3 -2 -2 -2 -2 -1 -1 ------- Run | Yrd Mat Min Mat Sto Mat Gar Mat Gar Fac Gar Fac Gar Fac Gar Fac Ext Cet Arc Hub Fac Gar Fac Res Gar Res Gar Res Gar Acc Com Active Infowar (turns) 9067 | . . . . . . . . 175 416 96 235 503 121 . . . . . 58 512 . 336 321 1410 174 138 601 1398 2332 241 Sensors 2183 | . . . . . . . . . 290 . 52 . 121 . . . . . . 512 . 292 59 . 174 . . . 683 . Traps 788 | . . . . . . . . 175 99 96 181 . . . . . . . . . . . 237 . . . . . . . Cloaking 2 | . . . . . . . . . . . . . . . . . . . . . . . . . . . . . 2 . Jamming 7248 | . . . . . . . . . 27 . 1 503 . . . . . . 58 . . 44 321 1410 174 138 601 1398 2332 241 ECM 1 | . . . . . . . . . . . 1 . . . . . . . . . . . . . . . . . . . Robot Analysis Total 5 | . 2 . 1 . 2 . . . . . . . . . . . . . . . . . . . . . . . . . Derelict Logs Recovered 1 | . . 1 . . . . . . . . . . . . . . . . . . . . . . . . . . . . Drone Launches . | . . . . . . . . . . . . . . . . . . . . . . . . . . . . . . . Drone Recoveries . | . . . . . . . . . . . . . . . . . . . . . . . . . . . . . . . Exploration | -11 -10 -10 -9 -9 -8 -8 -8 -8 -7 -7 -7 -7 -6 -6 -6 -6 -6 -6 -6 -5 -5 -4 -3 -3 -2 -2 -2 -2 -1 -1 ------------- Run | Yrd Mat Min Mat Sto Mat Gar Mat Gar Fac Gar Fac Gar Fac Gar Fac Ext Cet Arc Hub Fac Gar Fac Res Gar Res Gar Res Gar Acc Com Turns Passed 34512 | 113 1002 998 1624 3022 849 2806 444 1720 986 1795 1660 1906 944 1357 521 1545 384 453 637 637 1759 336 321 1410 174 138 601 1398 2332 640 Spaces Moved 14843 | 57 419 543 668 1105 300 1154 179 856 381 717 684 699 387 651 269 730 136 173 270 309 750 169 166 656 96 68 290 628 1047 286 Core 114 | 4 . . . 4 . . . . . . . . . . . . . . . . . . . . . . . . . 106 Treads 12293 | 53 419 543 668 997 300 1154 120 178 381 186 287 699 344 27 269 730 136 173 270 309 750 169 166 656 96 68 290 628 1047 180 Legs . | . . . . . . . . . . . . . . . . . . . . . . . . . . . . . . . Wheels 2426 | . . . . 94 . . 59 678 . 531 397 . 43 624 . . . . . . . . . . . . . . . . Hover . | . . . . . . . . . . . . . . . . . . . . . . . . . . . . . . . Flight 10 | . . . . 10 . . . . . . . . . . . . . . . . . . . . . . . . . . Fastest Speed 50 | 50 160 160 160 105 200 200 115 115 200 160 160 216 150 150 160 160 160 160 160 160 160 160 156 156 156 156 156 163 160 50 Average Speed 169 | 152 160 160 160 169 200 200 172 147 200 171 185 220 194 151 160 160 160 160 160 160 160 160 158 156 156 156 161 163 161 125 Slowest Speed 855 | 160 160 160 160 855 200 200 200 240 200 490 229 280 200 280 160 160 160 160 160 160 160 160 160 156 156 156 163 163 163 245 Overloaded Moves . | . . . . . . . . . . . . . . . . . . . . . . . . . . . . . . . Propulsion Burnouts . | . . . . . . . . . . . . . . . . . . . . . . . . . . . . . . . Robots Hopped 1 | . . . . . . . . . . . . . . . . . . . . . . . 1 . . . . . . . Potential Cave-ins 3 | . . . . . . . . . . . 3 . . . . . . . . . . . . . . . . . . . Cave-ins Triggered 1 | . . . . . . . . . . . 1 . . . . . . . . . . . . . . . . . . . Exploration Rate (%) 48 | 4 68 98 57 93 34 95 21 94 11 83 22 67 14 77 12 87 51 92 59 15 82 8 6 74 4 14 11 86 47 18 Regions Visited 30 Branch Regions 7 Pre-discovered Areas 1 | . . 1 . . . . . . . . . . . . . . . . . . . . . . . . . . . . Known Exits Taken 17 | . . . 1 . 1 . 1 . 1 . 1 . 1 . 1 1 1 1 1 1 . 1 1 . 1 . 1 . 1 . Unknown Exits Taken 4 | 1 1 1 . 1 . . . . . . . . . . . . . . . . . . . . . . . . . . Scrap Searched 2 | . . 2 . . . . . . . . . . . . . . . . . . . . . . . . . . . . Spaces Dug 244 | . 6 . 21 36 4 64 . 18 . 26 8 7 2 5 . . 8 . 5 . 3 3 1 3 . 2 . 3 16 3 Terrain Destroyed 829 | . 6 . 46 102 35 86 . 48 . 31 20 21 168 33 . 34 22 16 25 53 28 5 1 7 . 2 1 9 21 9 Melee 120 | . 6 . 1 1 1 56 . 6 . 9 4 6 1 5 . . 8 . 5 . 3 . . 3 . 2 . 3 . . Projectile 139 | . . . . . 3 . . . . . 8 2 2 1 . 2 14 16 20 . 24 5 1 4 . . 1 6 21 9 AOE 567 | . . . 45 101 31 30 . 42 . 22 8 13 165 25 . 32 . . . 53 . . . . . . . . . . Terrain Rammed . | . . . . . . . . . . . . . . . . . . . . . . . . . . . . . . . Walls Destroyed . | . . . . . . . . . . . . . . . . . . . . . . . . . . . . . . . Machines Disabled . | . . . . . . . . . . . . . . . . . . . . . . . . . . . . . . . Actions | -11 -10 -10 -9 -9 -8 -8 -8 -8 -7 -7 -7 -7 -6 -6 -6 -6 -6 -6 -6 -5 -5 -4 -3 -3 -2 -2 -2 -2 -1 -1 --------- Run | Yrd Mat Min Mat Sto Mat Gar Mat Gar Fac Gar Fac Gar Fac Gar Fac Ext Cet Arc Hub Fac Gar Fac Res Gar Res Gar Res Gar Acc Com Total 21733 | 74 625 633 1080 2113 464 1465 284 1195 599 1080 969 954 519 897 347 1042 229 313 400 423 1119 215 213 964 111 92 407 888 1561 458 Wait 3463 | 2 91 26 199 690 80 70 54 122 89 184 160 124 47 109 53 200 32 109 62 69 152 29 30 111 7 8 86 104 318 46 Move 14817 | 56 418 542 667 1104 300 1153 179 855 380 716 683 698 387 650 268 729 135 172 269 309 749 169 164 655 95 67 289 627 1046 286 Hop 1 | . . . . . . . . . . . . . . . . . . . . . . . 1 . . . . . . . Pick Up 201 | 6 15 15 16 14 6 17 3 9 6 6 5 7 7 11 2 . 2 2 1 4 12 1 2 9 . . 7 9 4 3 Fast Attach 169 | 6 4 1 7 23 3 4 7 21 2 4 9 7 10 4 5 2 7 5 1 5 6 3 1 4 . . 1 2 6 9 Attach 76 | . . 2 3 8 6 6 . 8 2 3 4 4 2 1 . . 2 1 . 3 1 1 2 1 2 . 1 1 4 8 Detach 77 | . 1 . 2 12 2 1 2 12 1 2 3 5 6 . . . 2 4 1 4 2 . . 1 . . 2 . 4 8 Swap 479 | . 9 5 30 42 10 27 6 28 14 25 26 23 15 24 5 13 3 1 15 12 26 3 6 18 1 3 4 32 45 8 Drop 285 | . 12 15 20 42 4 12 15 13 8 9 13 6 13 17 8 4 8 3 . 4 17 . 3 12 . . 4 11 6 6 Fire 1290 | 4 49 22 74 101 40 56 17 65 1 89 54 62 30 54 6 40 28 16 44 12 100 9 4 54 6 . 12 60 118 63 Melee 240 | . 24 . 1 7 10 80 1 26 . 21 7 9 1 10 . 2 8 . 5 . 4 . . 9 . 6 . 9 . . Ram 5 | . . . . . . . . . . . . . . . . . . . . . . . . . . . . . . 5 Kick 12 | . . . . . . . . . . . . . . . . . . . . . . . . . . . . . . 12 Crush 55 | . 2 1 9 12 3 2 . . 4 . . 1 1 . . 3 2 . 1 . 4 . . 1 . . 1 1 6 1 Escape Stasis 99 | . . 3 . 8 . 20 . 26 . 20 1 1 . 14 . 1 . . . . . . . . . . . 5 . . Rewire 239 | . . . . . . . . 3 . 1 3 7 . 3 . 47 . . 1 1 45 . . 89 . 8 . 27 4 . Trap 206 | . . 1 52 50 . 1 . 7 92 . 1 . . . . 1 . . . . 1 . . . . . . . . . Miscellaneous 19 | . . . . . . 16 . . . . . . . . . . . . . . . . . . . . . . . 3 Route ------- -11/Scrapyard -10/Materials (discovered 3 exits: *Mat / *Min / [*Sub]) -10/Mines (discovered 4 exits: *Mat x2 / [*Exi] / [*Sub]) -9/Materials (discovered 5 exits: *Mat x2 / *Min x2 / *Sto) -9/Storage (discovered 2 exits: *Mat / Rec) -8/Materials -8/Garrison (discovered 4 exits: *Fac x3 / *Mat) -8/Materials -8/Garrison (discovered 3 exits: *Fac x3) -7/Factory (discovered 3 exits: *Fac x2 / Gar) -7/Garrison (discovered 4 exits: *Fac x3 / *Fac) -7/Factory (discovered 3 exits: *Fac / [*Low] / Gar) -7/Garrison (discovered 3 exits: *Fac x3) -6/Factory (discovered 7 exits: *Fac x2 / Low x2 / Ext x2 / Gar) -6/Garrison (discovered 3 exits: *Fac x3) -6/Factory (discovered 2 exits: *Fac / *Ext) -6/Extension (discovered 2 exits: *Fac / *Cet) -6/Cetus (discovered 2 exits: *Fac / *Arc) -6/Archives (discovered 3 exits: *Fac / *Hub x2) -6/Hub_04(d) (discovered 4 exits: *Fac x4) -5/Factory -5/Garrison (discovered 3 exits: *Fac x3) -4/Factory (discovered 2 exits: *Res x2) -3/Research (discovered 2 exits: Tes / Gar) -3/Garrison (discovered 3 exits: *Res x2 / [*Res]) -2/Research -2/Garrison -2/Research (discovered 3 exits: Acc / Qua / Gar) -2/Garrison (discovered 3 exits: *Acc x3) -1/Access -1/Command (discovered 2 exits: Sur / Ac0) History --------- Turn | Location | Event 16 | -11/Scrapyard | Discovered new exit (range 14) 114 | -11/Scrapyard | Entered Materials 312 | -10/Materials | Build established: Mutant 403 | -10/Materials | Discovered new exit (range 7) 1006 | -10/Materials | Prayed at D.C.S.S. Altar Unit 1013 | -10/Materials | Discovered new exit (range 6) 1015 | -10/Materials | Discovered new exit (range 16) 1116 | -10/Materials | Entered Mines 1286 | -10/Mines | Found a hidden stash of uninstalled traps 1310 | -10/Mines | Discovered new exit (range 10) 1345 | -10/Mines | Inventory capacity permanently improved by X0-1V1 (+1) 1385 | -10/Mines | Learned location of Zion (-7) 1439 | -10/Mines | Found a damaged Exp. Sensor Array with a note attached 1444 | -10/Mines | Found Prototype Device 1460 | -10/Mines | Deemed a non-threat by the Exiles lab entrance 1460 | -10/Mines | Discovered new exit (range 5) 1562 | -10/Mines | A weapon hastily lodged in a ceiling crevice suddenly fell to the ground 1586 | -10/Mines | Build established: Scavenger-Mutant 1632 | -10/Mines | Met a Derelict who couldn't figure out how to use a Trap Extractor 1694 | -10/Mines | Received a Rocket Launcher from a helpful Derelict 1935 | -10/Mines | X0-1V1 activates XOMVISION 1967 | -10/Mines | Propulsion slot count permanently improved by X0-1V1 (+1) 2080 | -10/Mines | Discovered new exit (range 6) 2098 | -10/Mines | Discovered new exit (range 5) 2114 | -10/Mines | Entered Materials 2114 | -9/Materials | Evolved 2 slots: Utility x2 2157 | -9/Materials | Core integrity permanently improved by X0-1V1 (+300) 2229 | -9/Materials | Discovered new exit (range 15) 2364 | -9/Materials | Identified exit to Mines 2364 | -9/Materials | Identified exit to Storage 2400 | -9/Materials | Discovered new exit (range 10) 2427 | -9/Materials | X0-1V1 activates XOMVISION 3015 | -9/Materials | Discovered new exit (range 7) 3123 | -9/Materials | X0-1V1 sent you to a vault 3510 | -9/Materials | X0-1V1 sent hostile G-34 Mercenary (x4) 3518 | -9/Materials | X0-1V1 sent you into danger 3547 | -9/Materials | Destroyed 8 combat bots 3669 | -9/Materials | Identified Exp. Sensor Array 3738 | -9/Materials | Entered Storage 3746 | -9/Storage | X0-1V1 enhanced Transport squad support 3751 | -9/Storage | X0-1V1 announced a LAN party 3849 | -9/Storage | Garrison activated, responded to threat 3875 | -9/Storage | Destroyed 8 combat bots 3899 | -9/Storage | Lost 5 parts (1p2n2u) 3963 | -9/Storage | Lost 5 parts (2n2u1w) 4118 | -9/Storage | Build established: Mutant 4293 | -9/Storage | Assisted by bots powering up and referring to "LRC-V3" 4419 | -9/Storage | Lost 6 allies 4454 | -9/Storage | X0-1V1 mutated your Weapon slot to Utility slot 4596 | -9/Storage | X0-1V1 added 0b10 threat records associated with you (major) 4795 | -9/Storage | Core integrity fell below 50% 4855 | -9/Storage | X0-1V1 added 0b10 threat records associated with you (minor) 4928 | -9/Storage | Build established: Scavenger-Mutant 4938 | -9/Storage | Search patrols dispatched 5054 | -9/Storage | Discovered new exit (range 5) 5175 | -9/Storage | X0-1V1 foreshadows a heat wave 5213 | -9/Storage | Met a pair of Derelict thieves 5317 | -9/Storage | Ambient heat levels rising (+10) 5538 | -9/Storage | Ambient heat levels rising (+10) 5762 | -9/Storage | Ambient heat levels falling (-10) 5943 | -9/Storage | Ambient heat levels falling (-10) 5949 | -9/Storage | Core integrity restored by X0-1V1 (+96) 6138 | -9/Storage | First assault squad dispatched 6265 | -9/Storage | Identified exit to Recycling 6265 | -9/Storage | X0-1V1 revealed exit location to -9/Recycling 6614 | -9/Storage | Build established: Hauler-Mutant 6620 | -9/Storage | X0-1V1 activates XOMVISION 6760 | -9/Storage | Entered Materials 6760 | -8/Materials | Accompanied by 2 allies 6760 | -8/Materials | Evolved 2 slots: Weapon x2 6900 | -8/Materials | X0-1V1 vaporized surrounding terrain (radius 16) 7058 | -8/Materials | X0-1V1 mutated your Utility slot to Propulsion slot 7126 | -8/Materials | X0-1V1 sent you into danger 7145 | -8/Materials | Repaired Broken Exp. Sensor Array? 7150 | -8/Materials | Garrison activated, responded to threat 7176 | -8/Materials | Weapon slot count temporarily expanded by X0-1V1 (+1) 7202 | -8/Materials | X0-1V1 vaporized surrounding terrain (radius 15) 7247 | -8/Materials | X0-1V1 sent you into danger 7355 | -8/Materials | Build established: Hauler-Tank 7410 | -8/Materials | Central database locked down 7553 | -8/Materials | Garrison activated, responded to threat 7596 | -8/Materials | Destroyed 8 combat bots 7609 | -8/Materials | Identified exit to Garrison 7609 | -8/Materials | Entered Garrison 7755 | -8/Garrison | Triggered checkpoint 7800 | -8/Garrison | Garrison Relay disabled 7911 | -8/Garrison | X0-1V1 vaporized surrounding terrain (radius 22) 7938 | -8/Garrison | Destroyed 9 combat bots 7939 | -8/Garrison | Triggered checkpoint 8047 | -8/Garrison | Triggered checkpoint 8136 | -8/Garrison | Triggered checkpoint 8205 | -8/Garrison | Garrison Relay disabled 8273 | -8/Garrison | Discovered new exit (range 11) 8443 | -8/Garrison | Triggered checkpoint 8479 | -8/Garrison | X0-1V1 upgraded hostiles (x1) 8488 | -8/Garrison | Triggered checkpoint 8509 | -8/Garrison | System corruption reached 10% 8582 | -8/Garrison | X0-1V1 sent you into danger 8591 | -8/Garrison | Triggered checkpoint 8599 | -8/Garrison | X0-1V1 sent hostile G-47 Trooper (x5) 8629 | -8/Garrison | Destroyed 7 combat bots 8759 | -8/Garrison | Discovered new exit (range 10) 8799 | -8/Garrison | Triggered checkpoint 8837 | -8/Garrison | Triggered checkpoint 9169 | -8/Garrison | Triggered checkpoint 9241 | -8/Garrison | Triggered checkpoint 9265 | -8/Garrison | Discovered new exit (range 3) 9355 | -8/Garrison | Discovered new exit (range 15) 9561 | -8/Garrison | Build established: Hauler-Mutant 10105 | -8/Garrison | Installed Relay Interface Framework 10163 | -8/Garrison | Garrison Relay disabled 10240 | -8/Garrison | X0-1V1 rewrote Defender 3b IFF filter 10415 | -8/Garrison | Entered Materials 10415 | -8/Materials | Accompanied by 5 allies 10585 | -8/Materials | Lost 4 allies 10723 | -8/Materials | Build established: Bothacker-Tank 10768 | -8/Materials | X0-1V1 sent hostile X-57 Shotgunner (x3) 10823 | -8/Materials | X0-1V1 sent you into danger 10859 | -8/Materials | Identified exit to Garrison 10859 | -8/Materials | Entered Garrison 10883 | -8/Garrison | X0-1V1 destroyed Phase Generator 10883 | -8/Garrison | Phase Generator disabled 10950 | -8/Garrison | Triggered checkpoint 11213 | -8/Garrison | Triggered checkpoint 11249 | -8/Garrison | Triggered checkpoint 11304 | -8/Garrison | Destroyed 9 combat bots 11315 | -8/Garrison | Triggered checkpoint 11364 | -8/Garrison | Garrison Relay disabled 11382 | -8/Garrison | Discovered new exit (range 11) 11500 | -8/Garrison | Weapon slot count temporarily expanded by X0-1V1 (+3) 11631 | -8/Garrison | Triggered checkpoint 11651 | -8/Garrison | Triggered checkpoint 11677 | -8/Garrison | Expanded RIF knowledge: Alert ID Control 11813 | -8/Garrison | Build established: Bothacker-Executioner 11849 | -8/Garrison | Identified exit to Factory 11849 | -8/Garrison | X0-1V1 revealed exit location to -7/Factory 11950 | -8/Garrison | Discovered exit to Factory (range 14) 12182 | -8/Garrison | Core integrity restored by X0-1V1 (+172) 12274 | -8/Garrison | Expanded RIF knowledge: Program Shield 12331 | -8/Garrison | Build established: Bothacker-Tank 12391 | -8/Garrison | Triggered checkpoint 12579 | -8/Garrison | Entered Factory 12579 | -7/Factory | Accompanied by 9 allies 12579 | -7/Factory | Evolved 2 slots: Utility x2 12866 | -7/Factory | Identified exit to Factory 12866 | -7/Factory | X0-1V1 revealed exit location to -6/Factory 13379 | -7/Factory | First assault squad dispatched 13444 | -7/Factory | Discovered exit to Factory (range 15) 13450 | -7/Factory | Lost 5 allies 13559 | -7/Factory | Identified exit to Garrison 13565 | -7/Factory | Entered Garrison 13565 | -7/Garrison | Accompanied by 3 allies 13597 | -7/Garrison | X0-1V1 revealed exit location to -6/Factory 13615 | -7/Garrison | X0-1V1 activates XOMVISION 13627 | -7/Garrison | Triggered checkpoint 13665 | -7/Garrison | Lost 3 allies 13684 | -7/Garrison | Discovered new exit (range 6) 13934 | -7/Garrison | Expanded RIF knowledge: Watcher Feeds 13991 | -7/Garrison | Triggered checkpoint 13999 | -7/Garrison | Triggered checkpoint 14057 | -7/Garrison | Triggered checkpoint 14109 | -7/Garrison | X0-1V1 mutated your Propulsion slot to Power slot 14357 | -7/Garrison | Discovered exit to Factory (range 14) 14456 | -7/Garrison | Build established: Botlord-Gunner 14483 | -7/Garrison | Rescued a captive Derelict 14632 | -7/Garrison | Discovered exit to Factory (range 8) 14935 | -7/Garrison | Found Unknown Protection 14935 | -7/Garrison | Identified Powered Armor 14939 | -7/Garrison | Found Powered Armor 14941 | -7/Garrison | Found Powered Armor 15348 | -7/Garrison | Identified exit to Factory 15360 | -7/Garrison | Entered Factory 15360 | -7/Factory | Accompanied by 3 allies 15362 | -7/Factory | X0-1V1 redirected Transport squads to designated parking area 15650 | -7/Factory | X0-1V1 sent you to a vault 15651 | -7/Factory | Build established: Bothacker-Gunner 15856 | -7/Factory | Discovered new exit (range 11) 16249 | -7/Factory | Lost 3 allies 16462 | -7/Factory | Discovered exit to Factory (range 12) 16837 | -7/Factory | Lost 5 allies 16894 | -7/Factory | Found Prototype Launcher 16894 | -7/Factory | Identified Rocket Array 16960 | -7/Factory | First assault squad dispatched 17004 | -7/Factory | Crushed by falling debris 17017 | -7/Factory | Identified exit to Garrison 17020 | -7/Factory | Entered Garrison 17041 | -7/Garrison | X0-1V1 revealed exit location to -6/Factory 17371 | -7/Garrison | Expanded RIF knowledge: Code Merge 17540 | -7/Garrison | Triggered checkpoint 17574 | -7/Garrison | Spotted B-75 Beast 17592 | -7/Garrison | Destroyed B-75 Beast 17622 | -7/Garrison | Lost 6 allies 17789 | -7/Garrison | Triggered checkpoint 17804 | -7/Garrison | X0-1V1 revealed exit location to -6/Factory 17835 | -7/Garrison | X0-1V1 activates XOMVISION 17971 | -7/Garrison | X0-1V1 revealed exit location to -6/Factory 18084 | -7/Garrison | Triggered checkpoint 18293 | -7/Garrison | X0-1V1 activates XOMVISION 18395 | -7/Garrison | Triggered checkpoint 18574 | -7/Garrison | Discovered exit to Factory (range 67) 18574 | -7/Garrison | Discovered exit to Factory (range 11) 18574 | -7/Garrison | Discovered exit to Factory (range 81) 18796 | -7/Garrison | X0-1V1 mutated your Propulsion slot to Weapon slot 18801 | -7/Garrison | Garrison Relay disabled 18890 | -7/Garrison | Found embedded Infiltrators 18926 | -7/Garrison | Entered Factory 18926 | -6/Factory | Accompanied by 4 allies 18926 | -6/Factory | Evolved 2 slots: Propulsion x2 19087 | -6/Factory | Build established: Botlord-Gunner 19137 | -6/Factory | X0-1V1 sent you to a vault 19215 | -6/Factory | Discovered new exit (range 15) 19491 | -6/Factory | X0-1V1 activates XOMVISION 19559 | -6/Factory | Identified exit to Lower Caves 19559 | -6/Factory | Identified exit to Extension 19623 | -6/Factory | Identified exit to Factory 19623 | -6/Factory | X0-1V1 revealed exit location to -5/Factory 19794 | -6/Factory | Destroyed 9 combat bots 19870 | -6/Factory | Identified exit to Garrison 19870 | -6/Factory | Entered Garrison 19902 | -6/Garrison | Triggered checkpoint 19916 | -6/Garrison | Build established: Bothacker-Tank 19940 | -6/Garrison | Rescued a captive Derelict 19943 | -6/Garrison | Rescued a captive Derelict 20003 | -6/Garrison | Expanded RIF knowledge: Threat Obfuscation 20023 | -6/Garrison | Garrison Relay disabled 20142 | -6/Garrison | Triggered checkpoint 20187 | -6/Garrison | Lost 4 allies 20218 | -6/Garrison | Destroyed 8 combat bots 20267 | -6/Garrison | Destroyed 8 combat bots 20323 | -6/Garrison | Discovered new exit (range 10) 20372 | -6/Garrison | Triggered checkpoint 20522 | -6/Garrison | Triggered checkpoint 20536 | -6/Garrison | Build established: Botlord-Gunner 20582 | -6/Garrison | Triggered checkpoint 20621 | -6/Garrison | X0-1V1 activates XOMVISION 20826 | -6/Garrison | Discovered new exit (range 8) 20924 | -6/Garrison | Discovered new exit (range 12) 20985 | -6/Garrison | Triggered checkpoint 21227 | -6/Garrison | Entered Factory 21227 | -6/Factory | Accompanied by 4 allies 21287 | -6/Factory | X0-1V1 activates XOMVISION 21390 | -6/Factory | Discovered exit to Factory (range 15) 21449 | -6/Factory | Build established: Botlord-Tank 21681 | -6/Factory | Discovered exit to Extension (range 11) 21688 | -6/Factory | Lost 3 allies 21748 | -6/Factory | Entered Extension 21748 | -6/Extension | Accompanied by 1 ally 21895 | -6/Extension | X0-1V1 activates XOMVISION 22280 | -6/Extension | Rescued a captive Derelict 22321 | -6/Extension | Rescued A7 22396 | -6/Extension | Rescued a captive Derelict 22397 | -6/Extension | Rescued a captive Derelict 22504 | -6/Extension | X0-1V1 activates XOMVISION 22674 | -6/Extension | Spotted B-75 Beast 22696 | -6/Extension | Destroyed B-75 Beast 22704 | -6/Extension | Spotted B-75 Beast 22711 | -6/Extension | Allies destroyed B-75 Beast 22860 | -6/Extension | X0-1V1 revealed exit location to -5/Factory 23033 | -6/Extension | Rescued a captive Derelict 23034 | -6/Extension | Rescued a captive Derelict 23055 | -6/Extension | Rescued a captive Derelict 23128 | -6/Extension | Build established: Commander-Tank 23158 | -6/Extension | Rescued a captive Derelict 23212 | -6/Extension | Discovered new exit (range 6) 23291 | -6/Extension | Identified exit to Cetus 23293 | -6/Extension | Entered Cetus 23293 | -6/Cetus | Accompanied by 23 allies (A7) 23298 | -6/Cetus | Acquired a Cetus Manufacturing Module code from A7 23300 | -6/Cetus | Spotted Cetus Guard 23300 | -6/Cetus | Spotted Cetus Guard 23300 | -6/Cetus | Spotted Cetus Guard 23300 | -6/Cetus | Spotted Cetus Guard 23300 | -6/Cetus | X0-1V1 sent you into danger 23315 | -6/Cetus | X0-1V1 turns hostiles against one another 23319 | -6/Cetus | Destroyed Cetus Guard 23334 | -6/Cetus | Allies destroyed Cetus Guard 23337 | -6/Cetus | Destroyed Cetus Guard 23403 | -6/Cetus | Started Cetus Manufacturing Module 23428 | -6/Cetus | Manufactured an Enhanced Grunt 23440 | -6/Cetus | Discovered new exit (range 16) 23453 | -6/Cetus | Manufactured an Enhanced Grunt 23470 | -6/Cetus | Discovered exit to Factory (range 27) 23478 | -6/Cetus | Manufactured an Enhanced Grunt 23478 | -6/Cetus | Spotted Cetus Guard 23478 | -6/Cetus | Spotted Cetus Guard 23479 | -6/Cetus | Destroyed Cetus Guard 23481 | -6/Cetus | Spotted Cetus Guard 23482 | -6/Cetus | Spotted Cetus Guard 23486 | -6/Cetus | Allies destroyed Cetus Guard 23492 | -6/Cetus | Destroyed Cetus Guard 23494 | -6/Cetus | Allies destroyed Cetus Guard 23496 | -6/Cetus | Met Revision 17 23503 | -6/Cetus | Manufactured an Enhanced Grunt 23528 | -6/Cetus | Manufactured an Enhanced Grunt 23583 | -6/Cetus | Identified exit to Archives 23635 | -6/Cetus | System corruption reached 10% 23639 | -6/Cetus | Murdered A7 23644 | -6/Cetus | Extracted ID and sensor layout for unrecognized location from A7's data core 23677 | -6/Cetus | Entered Archives 23677 | -6/Archives | Accompanied by 23 allies 23710 | -6/Archives | X0-1V1 activates XOMVISION 23731 | -6/Archives | Lost 5 allies 23742 | -6/Archives | Discovered exit to Factory (range 17) 23785 | -6/Archives | Discovered new exit (range 17) 23852 | -6/Archives | Discovered new exit (range 14) 23889 | -6/Archives | X0-1V1 rewrote TD-4KP(h) IFF filter 24103 | -6/Archives | Identified exit to Hub_04(d) 24130 | -6/Archives | Entered Hub_04(d) 24130 | -6/Hub_04(d) | Accompanied by 14 allies 24311 | -6/Hub_04(d) | Discovered exit to Factory (range 6) 24389 | -6/Hub_04(d) | Lost 5 allies 24422 | -6/Hub_04(d) | Discovered exit to Factory (range 22) 24459 | -6/Hub_04(d) | X0-1V1 revealed exit location to -5/Factory 24493 | -6/Hub_04(d) | Network Hub disabled 24531 | -6/Hub_04(d) | Build established: Botlord-Tank 24560 | -6/Hub_04(d) | Lost 8 allies 24670 | -6/Hub_04(d) | X0-1V1 revealed exit location to -5/Factory 24737 | -6/Hub_04(d) | Spotted Lightning 24745 | -6/Hub_04(d) | Spotted Lightning 24746 | -6/Hub_04(d) | Spotted Lightning 24753 | -6/Hub_04(d) | Network Hub disabled 24758 | -6/Hub_04(d) | Lost 4 allies 24767 | -6/Hub_04(d) | Entered Factory 24767 | -5/Factory | Evolved 2 slots: Utility x2 24949 | -5/Factory | X0-1V1 released a cloud of subatomizers 25020 | -5/Factory | X0-1V1 sent you into danger 25166 | -5/Factory | Build established: Botlord-Skirmisher 25215 | -5/Factory | X0-1V1 added 0b10 threat records associated with you (major) 25298 | -5/Factory | System corruption reached 10% 25367 | -5/Factory | First assault squad dispatched 25404 | -5/Factory | Identified exit to Garrison 25404 | -5/Factory | Entered Garrison 25443 | -5/Garrison | Spotted B-75 Beast 25443 | -5/Garrison | Spotted B-90 Cyclops 25483 | -5/Garrison | Destroyed B-75 Beast 25522 | -5/Garrison | Identified exit to Factory 25522 | -5/Garrison | X0-1V1 revealed exit location to -4/Factory 25558 | -5/Garrison | Destroyed B-90 Cyclops 25651 | -5/Garrison | Rewired B-75 Beast 25753 | -5/Garrison | X0-1V1 activates XOMVISION 25818 | -5/Garrison | Triggered checkpoint 25831 | -5/Garrison | Garrison Relay disabled 25874 | -5/Garrison | X0-1V1 mutated your Weapon slot to Propulsion slot 25916 | -5/Garrison | Build established: Bothacker-Tank 25920 | -5/Garrison | Triggered checkpoint 26053 | -5/Garrison | Triggered checkpoint 26206 | -5/Garrison | Triggered checkpoint 26218 | -5/Garrison | X0-1V1 destroyed Phase Generator 26218 | -5/Garrison | Phase Generator disabled 26306 | -5/Garrison | Triggered checkpoint 26308 | -5/Garrison | X0-1V1 whisked you away to safety 26432 | -5/Garrison | Triggered checkpoint 26552 | -5/Garrison | X0-1V1 sent hostile H-66 Slayer (x2) 26590 | -5/Garrison | Expanded RIF knowledge: Autoassimilate 26602 | -5/Garrison | Discovered exit to Factory (range 10) 26624 | -5/Garrison | Triggered checkpoint 26653 | -5/Garrison | Garrison Relay disabled 26791 | -5/Garrison | Discovered exit to Factory (range 14) 26820 | -5/Garrison | Triggered checkpoint 26965 | -5/Garrison | Build established: Botlord-Tank 27163 | -5/Garrison | Entered Factory 27163 | -4/Factory | Accompanied by 4 allies 27163 | -4/Factory | Evolved 2 slots: Propulsion x1, Utility x1 27211 | -4/Factory | Identified exit to Research 27211 | -4/Factory | X0-1V1 revealed exit location to -3/Research 27450 | -4/Factory | X0-1V1 sent you to a vault 27466 | -4/Factory | Discovered exit to Research (range 15) 27499 | -4/Factory | Entered Research 27499 | -3/Research | Accompanied by 1 ally 27499 | -3/Research | Evolved 2 slots: Power x1, Utility x1 27631 | -3/Research | Found Gamma Bomb Array 27640 | -3/Research | Identified exit to Testing 27640 | -3/Research | X0-1V1 revealed exit location to -3/Testing 27699 | -3/Research | Revision forces began assault on 0b10 27713 | -3/Research | Met up with Revision 17++ 27812 | -3/Research | Identified exit to Garrison 27820 | -3/Research | Entered Garrison 27820 | -3/Garrison | Accompanied by 1 ally 27867 | -3/Garrison | Triggered checkpoint 27895 | -3/Garrison | Garrison Relay disabled 28046 | -3/Garrison | Triggered checkpoint 28069 | -3/Garrison | Discovered new exit (range 6) 28154 | -3/Garrison | Triggered checkpoint 28226 | -3/Garrison | Triggered checkpoint 28228 | -3/Garrison | Lost 4 allies 28243 | -3/Garrison | X0-1V1 rewrote Plague 8b IFF filter 28267 | -3/Garrison | Discovered new exit (range 9) 28337 | -3/Garrison | X0-1V1 activates XOMVISION 28374 | -3/Garrison | Triggered checkpoint 28406 | -3/Garrison | Triggered checkpoint 28417 | -3/Garrison | Garrison Relay disabled 28558 | -3/Garrison | Identified exit to Research 28576 | -3/Garrison | Learned Research security intel 28886 | -3/Garrison | Triggered checkpoint 28936 | -3/Garrison | Triggered checkpoint 28978 | -3/Garrison | Discovered exit to Research (range 16) 29044 | -3/Garrison | Expanded RIF knowledge: Patrol Navigation 29168 | -3/Garrison | X0-1V1 destroyed Phase Generator 29168 | -3/Garrison | Phase Generator disabled 29230 | -3/Garrison | Entered Research 29230 | -2/Research | Accompanied by 9 allies 29230 | -2/Research | Evolved 2 slots: Utility x2 29347 | -2/Research | Identified exit to Garrison 29386 | -2/Research | Garrison activated, responded to threat 29404 | -2/Research | Entered Garrison 29404 | -2/Garrison | Accompanied by 10 allies 29430 | -2/Garrison | Found embedded Infiltrators 29465 | -2/Garrison | Expanded RIF knowledge: Command Fork 29496 | -2/Garrison | Triggered checkpoint 29517 | -2/Garrison | Discovered new exit (range 3) 29520 | -2/Garrison | Identified exit to Research 29542 | -2/Garrison | Entered Research 29542 | -2/Research | Accompanied by 15 allies 29699 | -2/Research | Identified exit to Access 29699 | -2/Research | X0-1V1 revealed exit location to -1/Access 29741 | -2/Research | X0-1V1 sent someone to keep an eye on you 29859 | -2/Research | Repaired Centrium Medium Armor Plating? 29950 | -2/Research | Lost 6 allies 29989 | -2/Research | Central database locked down 30037 | -2/Research | Lost 6 allies 30043 | -2/Research | Garrison activated, responded to threat 30088 | -2/Research | Identified exit to Garrison 30131 | -2/Research | Identified exit to Quarantine 30131 | -2/Research | X0-1V1 revealed exit location to -2/Quarantine 30143 | -2/Research | Entered Garrison 30143 | -2/Garrison | Accompanied by 7 allies 30193 | -2/Garrison | Triggered checkpoint 30275 | -2/Garrison | Lost 7 allies 30308 | -2/Garrison | Rewired Executioner 30314 | -2/Garrison | Rewired Executioner 30391 | -2/Garrison | Garrison Relay disabled 30393 | -2/Garrison | Spotted B-90 Cyclops 30393 | -2/Garrison | X0-1V1 sent you into danger 30393 | -2/Garrison | Triggered checkpoint 30413 | -2/Garrison | Triggered checkpoint 30427 | -2/Garrison | X0-1V1 upgraded ally (x1) 30451 | -2/Garrison | Triggered checkpoint 30455 | -2/Garrison | Allies destroyed B-90 Cyclops 30461 | -2/Garrison | Destroyed 7 combat bots 30477 | -2/Garrison | Found Exp. Core Analyzer 30479 | -2/Garrison | Triggered checkpoint 30531 | -2/Garrison | Lost 3 allies 30543 | -2/Garrison | Triggered checkpoint 30618 | -2/Garrison | Garrison Relay disabled 30630 | -2/Garrison | X0-1V1 activates XOMVISION 30638 | -2/Garrison | X0-1V1 rewrote Executioner IFF filter 30641 | -2/Garrison | Destroyed Executioner 30692 | -2/Garrison | Discovered exit to Access (range 10) 30907 | -2/Garrison | Lost 4 allies 30910 | -2/Garrison | Discovered exit to Access (range 12) 30925 | -2/Garrison | Triggered checkpoint 30943 | -2/Garrison | Triggered checkpoint 30955 | -2/Garrison | Garrison Relay disabled 31005 | -2/Garrison | Expanded RIF knowledge: Command Fork 31167 | -2/Garrison | Triggered checkpoint 31202 | -2/Garrison | Garrison Relay disabled 31277 | -2/Garrison | X0-1V1 rewrote Plague 9k IFF filter 31315 | -2/Garrison | Triggered checkpoint 31360 | -2/Garrison | Garrison Relay disabled 31372 | -2/Garrison | Discovered exit to Access (range 7) 31372 | -2/Garrison | Discovered exit to Access (range 57) 31372 | -2/Garrison | Discovered exit to Access (range 41) 31372 | -2/Garrison | Watched by a mysterious "MATRIX" hacker 31429 | -2/Garrison | Rescued a captive Derelict 31541 | -2/Garrison | Entered Access 31541 | -1/Access | Accompanied by 6 allies 31541 | -1/Access | Evolved 2 slots: Utility x2 31778 | -1/Access | Lost 4 allies 32077 | -1/Access | Garrison activated, responded to threat 32315 | -1/Access | X0-1V1 sent you to a vault 32346 | -1/Access | Spotted B-99 Colossus 32347 | -1/Access | Autoassimilated Colossus 10a with RIF 32374 | -1/Access | Lost 5 allies 32436 | -1/Access | Lost 3 allies 32518 | -1/Access | Lost 3 allies 32817 | -1/Access | Spotted B-99 Colossus 32822 | -1/Access | Spotted B-99 Colossus 32823 | -1/Access | Assimilated Colossus 10b with formatsys_high 32825 | -1/Access | Assimilated Colossus 10c with formatsys_high 33026 | -1/Access | Spotted B-99 Colossus 33032 | -1/Access | Assimilated Colossus 10d with formatsys_high 33301 | -1/Access | System corruption reached 10% 33413 | -1/Access | Spotted B-99 Colossus 33414 | -1/Access | Autoassimilated Colossus 10e with RIF 33415 | -1/Access | Spotted B-99 Colossus 33421 | -1/Access | Assimilated Colossus 10f with formatsys_high 33449 | -1/Access | Discovered new exit (range 4) 33454 | -1/Access | Identified exit to Command 33541 | -1/Access | First assault squad dispatched 33541 | -1/Access | X0-1V1 destroyed Energy Cycler 33541 | -1/Access | Energy Cycler disabled 33585 | -1/Access | X0-1V1 whisked you away to safety 33873 | -1/Access | Entered Command 33873 | -1/Command | Accompanied by 6 allies 33881 | -1/Command | Identified exit to Surface 33881 | -1/Command | X0-1V1 revealed exit location to -0/Surface 34011 | -1/Command | Assimilated ARC 10a with formatsys_deep 34131 | -1/Command | Spotted M Guard 34131 | -1/Command | Spotted M Guard 34131 | -1/Command | Spotted Combat Programmer 34132 | -1/Command | Spotted Combat Programmer 34157 | -1/Command | Allies destroyed Combat Programmer 34184 | -1/Command | Allies destroyed M Guard 34186 | -1/Command | Allies destroyed Combat Programmer 34186 | -1/Command | All MAIN.C guards destroyed 34244 | -1/Command | Identified exit to Access_0 34244 | -1/Command | X0-1V1 revealed exit location to -1/Access_0 34266 | -1/Command | Met MAIN.C 34275 | -1/Command | Found YOLO Cannon 34276 | -1/Command | 0b10 Conduit disabled 34291 | -1/Command | Destroyed MAIN.C Shell 34294 | -1/Command | MAIN.C activated Command garrisons 34319 | -1/Command | YOLO Cannon suddenly exploded 34320 | -1/Command | Core integrity fell below 50% 34350 | -1/Command | Lost 8 parts (1p6u1w) 34367 | -1/Command | X0-1V1 whisked you away to safety 34411 | -1/Command | System corruption reached 30% 34438 | -1/Command | Lost 3 allies 34455 | -1/Command | Core integrity fell below 20% 34457 | -1/Command | X0-1V1 rescued you from certain death 34503 | -1/Command | Lost 12 parts (6n6u) 34513 | -1/Command | Destroyed by S-43 Plague with Heavy Machine Gun Last Messages --------------- 34510_ Kicked P-80 Master. 34510_ K-01 Serf collects debris. 34511_ Penetrated by Slug. 34511_ Enh. Biometal Leg destroyed. 34511_ Penetrated by Slug. 34511_ Kicked P-80 Master. 34512_ Enh. Biometal Leg severed. 34512_ Slammed into P-80 Master. 34512_ Destabilizing: Core damaged (-54). 34512_ Slug penetrates Wall. 34513_ P-80 Master resets X-87 Electro, system corruption cleaned. 34513_ C-45 Heavy ARC bursts open, deploying its payload. 34513_ L-61 Swordsman unfolds itself. 34513_ G-73 Enforcer unfolds itself. 34513_ Slug penetrates Wall. 34513_ Critical hit (Burn: +37). 34513_ P-80 Master resets X-87 Electro, system corruption cleaned. 34513_ X0-1V1 chortles! Map ----- +----------------------------------------------------+ | ???????????????????# "%% % ""#"""#### | | ???????????????????# % % | | ?????????????????###+############### | | ?????????????????# #?????# "#"""+"### | | ?????????????????# #?????###"## | | ?????????????????# """"""" #???????# ## | | ?????????????????# """Y""" #???????#??# | | ?????????????????# #??????????# | | ?????????????????# ???????????# "" | | ?????????????????# ???######### """" | | ?????????????????###########????# %%%=% / """" | | ????????????????????????????????# ####### "" | | ????????????????????????????????# #?????# | | ????????????????????????????????# #?????# | | ??????????????????????########### #?######""#""### | | ??????????????????????# ## ### | | ??????????????##??????# + #"" ### | | ?????????????# #??????# ####"" #?? | | ???????????## #??????# #??#"" #?? | | ??????????## #??????# #??#T #?? | | ??????#### ###?????# #??#"" #?# | | ?????## ##????# "" #??#"" # | | ##?### #### # ###??# "%%" #??#"" " | | #?# # # # #% #??#sp=" #??### " | | ### ### ### #####/############ !! " | | h g / hgx@h !! " % | | p g gh gpphhggg ] % %# | | lhhpppx= gpg l * %" | | pgpggx xg%|h%gpg ==# | | h gpp= [=p[gg p !# | | """ ## ] ###xh% #######+###### #? | | "## # # # W ""hpgg % % #????????????# #? | | ####### # ### ## #"""!h! ###??????????# #?? | | ??????## ## # ## #"T ggk[ ""#??????????# #?? | | ???????### # ######"""gs* ""#??????????# #?? | | ??????????#####????# ""g T"#??????????# #?? | | ???????????????????####p ""#??????????# #?? | | ??????????????????????# ""#??????????# #?? | | ??????????????????????#h=%/ ###??????????# #?? | | ??????????????????##### % #????????????? ??? | | ?????????????????## =* % #????????????? ??? | | ?????????????????# !! #????????????? ??? | | ?????????????????# = +????????????? ??? | | ?????????????????# % #????????????? ??? | | ?????????????????# % #????????????? ??? | | ?????????????????# #?????????????+??? | | ?????????????????# #????????????? ??? | | ?????????????????# ![ #????????????? ??? | | ?????????????????# "%%| #????????????????? | | ?????????????????# "[ #????????????????? | +----------------------------------------------------+ Best States ------------- Heat Dissipation 90 Coolant Potential 100 Energy Generation 100 Energy Capacity 2290 Matter Stores 1148 Matter Capacity 1200 Sight Range 22 Robot Scan Range 20 Terrain Scan Density 10 Jamming Range 12 Armor Coverage 1250 Resistance: KI 80 Resistance: TH 100 Resistance: EM 25 Weapon Shielding 90 Weapon Cycling 25 Evasion (%) 50 Core Analysis 8 Recoil Reduction 6 Kinecelleration 40 Offensive Hacking 12 Relay Coupler Types 6 Relay Coupler Value 399 Trap Extractor Capacity 6 Item Schematics ----------------- Exp. Sensor Array | -9/Materials | Scanalyzed Powered Armor | -6/Factory | Scanalyzed Robot Schematics ------------------ None Fabricated ------------ Nothing Repaired ---------- Exp. Sensor Array | 62% | -8/Materials | Broken Centrium Medium Armor Plating | 41% | -2/Research Studied --------- Lgt. Treads | -9/Materials | Hacked Autogun | -9/Materials | Hacked Rocket Launcher | -9/Materials | Hacked Imp. Ion Engine | -9/Materials | Hacked Med. Treads | -7/Factory | Hacked Gauss Rifle | -7/Factory | Hacked Imp. Deuterium Engine | -6/Factory | Hacked Hvy. Machine Gun | -6/Factory | Hacked Lrn. Proton Cannon | -6/Factory | Hacked Hyp. Mass Driver | -2/Research | Hacked Enh. Nova Cannon | -1/Access | Hacked Alien Tech Used ----------------- None Achievements -------------- Chaos Is Inevitable Challenges ------------ None Game ------ Seed FireInertialRifle Manual? 0 Play Time 04:46:43 Cumulative 2250.3 hours Start 2026.06.23 @ 03:13:03 End 2026.06.25 @ 03:58:42 Sessions 5 Manual Loads 0 Difficulty Rogue Special Mode None Game No. 1412 Rogue 1408 Adventurer 4 Explorer 0 Win Type - Total 322 Types 241/14/27/11/4/1/5/10/5/4 Lore% 98 Gallery% 95 Achievement% 94 Wizard Run 0 Options --------- Layout 2 ASCII 0 Keyboard 1 Movement Vi Keybinds 0 Fullscreen 0 Font 24/Terminus Map View 59x48 Zoom Use 0% Tactical HUD 1 Map Filters NONE Filters NONE Steam 1 RUN: 0eae2678-6e93-4d61-a249-64a5c52592b4